Publisher Label,Publisher URI,"Supplier ID","Supplier","Invoice No.","Amount £","Purpose","Transaction Number","Payment Date","Organisational Unit","Cost Centre(T)","Internal Category Number"
"Wolverhampton City Council","http://opendatacommunities.org/id/metropolitan-district-council/wolverhampton","716125","Autostart Midlands Limited","081300","29.95","Equipment - Purchase","190461309","23/05/2018","Fleet Services","Fleet Management","R4000"
"Wolverhampton City Council","http://opendatacommunities.org/id/metropolitan-district-council/wolverhampton","716177","Bolinda Uk Ltd","27642","436.60","Books","130216761","25/05/2018","Strategic Organisation Development","Global Budgets","R4309"
"Wolverhampton City Council","http://opendatacommunities.org/id/metropolitan-district-council/wolverhampton","716177","Bolinda Uk Ltd","27660","245.55","Books","130216762","25/05/2018","Strategic Organisation Development","Global Budgets","R4309"
"Wolverhampton City Council","http://opendatacommunities.org/id/metropolitan-district-council/wolverhampton","716177","Bolinda Uk Ltd","27641","114.36","Books","130216760","25/05/2018","Strategic Organisation Development","Global Budgets","R4309"
"Wolverhampton City Council","http://opendatacommunities.org/id/metropolitan-district-council/wolverhampton","716177","Bolinda Uk Ltd","27640","519.88","Books","130216759","25/05/2018","Strategic Organisation Development","Global Budgets","R4309"
"Wolverhampton City Council","http://opendatacommunities.org/id/metropolitan-district-council/wolverhampton","716209","Merchandise Ltd","88454","210.00","Marketing \ Non-staff advertising","130215154","04/05/2018","School Planning & Resources","Technical Support","R4317"
"Wolverhampton City Council","http://opendatacommunities.org/id/metropolitan-district-council/wolverhampton","716209","Merchandise Ltd","88034","361.50","Marketing \ Non-staff advertising","130215864","11/05/2018","School Planning & Resources","Technical Support","R4317"
"Wolverhampton City Council","http://opendatacommunities.org/id/metropolitan-district-council/wolverhampton","716224","Homers Travel","357","1,085.20","Client Transport","130215455","09/05/2018","Special Educational Needs","Special - Transport","R3042"
"Wolverhampton City Council","http://opendatacommunities.org/id/metropolitan-district-council/wolverhampton","716224","Homers Travel","356","1,170.00","Client Transport","130215323","09/05/2018","Special Educational Needs","Special - Transport","R3042"
"Wolverhampton City Council","http://opendatacommunities.org/id/metropolitan-district-council/wolverhampton","716224","Homers Travel","362","300.00","Client Transport","130217314","25/05/2018","Special Educational Needs","Special - Transport","R3042"
"Wolverhampton City Council","http://opendatacommunities.org/id/metropolitan-district-council/wolverhampton","716227","Ascentis Awarding Body","55525","2,696.00","Exam Expenses (Non-Employee)","130214043","02/05/2018","Adult Education","Discretionary Fund","R4630"
"Wolverhampton City Council","http://opendatacommunities.org/id/metropolitan-district-council/wolverhampton","716227","Ascentis Awarding Body","57873","328.00","Exam Expenses (Non-Employee)","130213621","09/05/2018","Adult Education","Discretionary Fund","R4630"
"Wolverhampton City Council","http://opendatacommunities.org/id/metropolitan-district-council/wolverhampton","716246","One 4 You Services Ltd","6805","50.00","Client Transport","130216038","23/05/2018","Special Educational Needs","Special - Transport","R3042"
"Wolverhampton City Council","http://opendatacommunities.org/id/metropolitan-district-council/wolverhampton","716246","One 4 You Services Ltd","6804","1,470.92","Client Transport","130216037","23/05/2018","Special Educational Needs","Special - Transport","R3042"
"Wolverhampton City Council","http://opendatacommunities.org/id/metropolitan-district-council/wolverhampton","716246","One 4 You Services Ltd","6803","770.00","Client Transport","130216036","23/05/2018","Special Educational Needs","Special - Transport","R3042"
"Wolverhampton City Council","http://opendatacommunities.org/id/metropolitan-district-council/wolverhampton","716246","One 4 You Services Ltd","6802","682.00","Client Transport","130216035","23/05/2018","Special Educational Needs","Special - Transport","R3042"
"Wolverhampton City Council","http://opendatacommunities.org/id/metropolitan-district-council/wolverhampton","716310","Equine Rescue Ltd","10426101","1,750.00","Services - Professional Fees","130214353","02/05/2018","Public Protection","Site Works (Reg)","R4400"
"Wolverhampton City Council","http://opendatacommunities.org/id/metropolitan-district-council/wolverhampton","716310","Equine Rescue Ltd","10425742","4,375.00","Services - Professional Fees","130214352","02/05/2018","Public Protection","Site Works (Reg)","R4400"
"Wolverhampton City Council","http://opendatacommunities.org/id/metropolitan-district-council/wolverhampton","716362","LHi Group Ltd/Lawrence Harvey","115566","5,985.00","Agency Staff","130215753","30/05/2018","Strategic Finance","Agresso System Support","R1100"
"Wolverhampton City Council","http://opendatacommunities.org/id/metropolitan-district-council/wolverhampton","716362","LHi Group Ltd/Lawrence Harvey","115297","7,315.00","Agency Staff","130212694","04/05/2018","Strategic Finance","Agresso System Support","R1100"
"Wolverhampton City Council","http://opendatacommunities.org/id/metropolitan-district-council/wolverhampton","716369","Armstrong Bell Ltd","0025998","190.20","Comms - Telephone Call charges","130213622","04/05/2018","Skills","Connexions Contract","R4505"
"Wolverhampton City Council","http://opendatacommunities.org/id/metropolitan-district-council/wolverhampton","716392","Virgin Media Ltd","039003802/001/0518","6.29","Comms - Telephone Rental","130216764","30/05/2018","Catering","Primary Schools Catering","R4504"
"Wolverhampton City Council","http://opendatacommunities.org/id/metropolitan-district-council/wolverhampton","716392","Virgin Media Ltd","039003802/001/0418","6.79","Comms - Telephone Rental","130214672","02/05/2018","Catering","Primary Schools Catering","R4504"
"Wolverhampton City Council","http://opendatacommunities.org/id/metropolitan-district-council/wolverhampton","716408","Bracey Business Training","WCC/102/18","600.00","Training Expenses","130213435","09/05/2018","Public Service Reform","Centralised Training","R1650"
"Wolverhampton City Council","http://opendatacommunities.org/id/metropolitan-district-council/wolverhampton","716412","Building Software Ltd T/A Measure2Improve","5822","15,100.00","Services - Fees and Charges","130215754","30/05/2018","Operation & Maintenance of Existing Network","Condition Surveys","R4401"
"Wolverhampton City Council","http://opendatacommunities.org/id/metropolitan-district-council/wolverhampton","716552","Geeky Creative Ltd","810","200.00","Subscriptions","130205560","11/05/2018","Business Continuity & Emergency Planning","Business Continuity & Emergency Planning","R4701"
"Wolverhampton City Council","http://opendatacommunities.org/id/metropolitan-district-council/wolverhampton","716552","Geeky Creative Ltd","817","200.00","Subscriptions","130209332","11/05/2018","Business Continuity & Emergency Planning","Business Continuity & Emergency Planning","R4701"
"Wolverhampton City Council","http://opendatacommunities.org/id/metropolitan-district-council/wolverhampton","716552","Geeky Creative Ltd","830","200.00","Subscriptions","130213436","11/05/2018","Business Continuity & Emergency Planning","Business Continuity & Emergency Planning","R4701"
"Wolverhampton City Council","http://opendatacommunities.org/id/metropolitan-district-council/wolverhampton","716552","Geeky Creative Ltd","834","200.00","Subscriptions","130215755","11/05/2018","Business Continuity & Emergency Planning","Business Continuity & Emergency Planning","R4701"
"Wolverhampton City Council","http://opendatacommunities.org/id/metropolitan-district-council/wolverhampton","716571","E-Recruiter","1293","2,902.50","Agency Staff","130213787","16/05/2018","Strategic Finance","Agresso System Support","R1100"
"Wolverhampton City Council","http://opendatacommunities.org/id/metropolitan-district-council/wolverhampton","716571","E-Recruiter","1253","3,225.00","Agency Staff","130211326","02/05/2018","Strategic Finance","Agresso System Support","R1100"
"Wolverhampton City Council","http://opendatacommunities.org/id/metropolitan-district-council/wolverhampton","716571","E-Recruiter","1283","2,580.00","Agency Staff","130212878","09/05/2018","Strategic Finance","Agresso System Support","R1100"
"Wolverhampton City Council","http://opendatacommunities.org/id/metropolitan-district-council/wolverhampton","716571","E-Recruiter","1267","2,580.00","Agency Staff","130212153","02/05/2018","Strategic Finance","Agresso System Support","R1100"
"Wolverhampton City Council","http://opendatacommunities.org/id/metropolitan-district-council/wolverhampton","716571","E-Recruiter","1163","2,580.00","Agency Staff","130214864","04/05/2018","Strategic Finance","Agresso System Support","R1100"
"Wolverhampton City Council","http://opendatacommunities.org/id/metropolitan-district-council/wolverhampton","716584","Atkins Limited","18015796","10,836.33","Services - Professional Fees","130214048","16/05/2018","Commercial Services","Corporate Procurement Unit","R4400"
"Wolverhampton City Council","http://opendatacommunities.org/id/metropolitan-district-council/wolverhampton","716584","Atkins Limited","18015695","60,348.72","Construction and Conversion","130214044","16/05/2018","-","Primary Expansion Programme","C1100"
"Wolverhampton City Council","http://opendatacommunities.org/id/metropolitan-district-council/wolverhampton","716584","Atkins Limited","18014911","4,740.00","External Professional Fees","130214865","25/05/2018","-","GF - LGF Feasibility","C6002"
"Wolverhampton City Council","http://opendatacommunities.org/id/metropolitan-district-council/wolverhampton","716584","Atkins Limited","18015696","7,931.58","Construction and Conversion","130214045","16/05/2018","-","Primary Expansion Programme","C1100"
"Wolverhampton City Council","http://opendatacommunities.org/id/metropolitan-district-council/wolverhampton","716589","Elston Hall Multi-Academy Trust","Elston Hall Academy Early Years Payment Spring Term Final 1718","25,019.83","Grant Payments","190458593","18/05/2018","Schools","Academy Early years","R4700"
"Wolverhampton City Council","http://opendatacommunities.org/id/metropolitan-district-council/wolverhampton","716594","Burke Bros Recovery","G31544","70.00","Services - Professional Fees","190456514","11/05/2018","Fleet Services","Fleet Management","R4400"
"Wolverhampton City Council","http://opendatacommunities.org/id/metropolitan-district-council/wolverhampton","716594","Burke Bros Recovery","G31855","70.00","Services - Professional Fees","190461356","23/05/2018","Fleet Services","Fleet Management","R4400"
"Wolverhampton City Council","http://opendatacommunities.org/id/metropolitan-district-council/wolverhampton","716594","Burke Bros Recovery","G31478","70.00","Services - Professional Fees","190456513","11/05/2018","Fleet Services","Fleet Management","R4400"
"Wolverhampton City Council","http://opendatacommunities.org/id/metropolitan-district-council/wolverhampton","716594","Burke Bros Recovery","G32060","70.00","Services - Professional Fees","190461359","23/05/2018","Fleet Services","Fleet Management","R4400"
"Wolverhampton City Council","http://opendatacommunities.org/id/metropolitan-district-council/wolverhampton","716594","Burke Bros Recovery","G31676","70.00","Services - Professional Fees","190461355","23/05/2018","Fleet Services","Fleet Management","R4400"
"Wolverhampton City Council","http://opendatacommunities.org/id/metropolitan-district-council/wolverhampton","716594","Burke Bros Recovery","G31595","70.00","Services - Professional Fees","190461354","23/05/2018","Fleet Services","Fleet Management","R4400"
"Wolverhampton City Council","http://opendatacommunities.org/id/metropolitan-district-council/wolverhampton","716594","Burke Bros Recovery","G32059","70.00","Services - Professional Fees","190461358","23/05/2018","Fleet Services","Fleet Management","R4400"
"Wolverhampton City Council","http://opendatacommunities.org/id/metropolitan-district-council/wolverhampton","716594","Burke Bros Recovery","G32057","70.00","Services - Professional Fees","190461357","23/05/2018","Fleet Services","Fleet Management","R4400"
"Wolverhampton City Council","http://opendatacommunities.org/id/metropolitan-district-council/wolverhampton","716594","Burke Bros Recovery","G31301","70.00","Services - Professional Fees","190455282","09/05/2018","Fleet Services","Fleet Management","R4400"
"Wolverhampton City Council","http://opendatacommunities.org/id/metropolitan-district-council/wolverhampton","716697","Npower Leeds","7662804","97.90","Gas","190460854","23/05/2018","Corporate Asset Management","Central Utilities to Recharge","R2101"
"Wolverhampton City Council","http://opendatacommunities.org/id/metropolitan-district-council/wolverhampton","716697","Npower Leeds","K95G15110-1805","15.10","Electricity","190460857","23/05/2018","Corporate Asset Management","Central Utilities to Recharge","R2100"
"Wolverhampton City Council","http://opendatacommunities.org/id/metropolitan-district-council/wolverhampton","716708","TMS Consultancy","17166","1,350.00","External Professional Fees","130213788","16/05/2018","-","GF - LGF Feasibility","C6002"
"Wolverhampton City Council","http://opendatacommunities.org/id/metropolitan-district-council/wolverhampton","716717","Pre-Paid Financial Services Ltd","09876-WOLVERHAMPTON-0418","4,032.55","Services - Supplies and Services to service users","130215155","25/05/2018","Community Financial Support","Direct Payments Client Admin","R4408"
"Wolverhampton City Council","http://opendatacommunities.org/id/metropolitan-district-council/wolverhampton","716767","KINGSTON - Northern House Academy","Northern House PRU 50% Summer Term 18/19 Interim","40,000.00","Grant Payments","190455736","11/05/2018","Schools","Special Schools Top Up Contingency","R4700"
"Wolverhampton City Council","http://opendatacommunities.org/id/metropolitan-district-council/wolverhampton","716767","KINGSTON - Northern House Academy","NHAT_0537","3,031.00","TPP - Alternative Provision of Education","130217543","30/05/2018","Specialist Support","Alternative Provision","R5037"
"Wolverhampton City Council","http://opendatacommunities.org/id/metropolitan-district-council/wolverhampton","716776","NHS Supply Chain","1018250783","691.00","TPP - Public Health Contracts","130215756","11/05/2018","Contracts","Healthy Start to Life","R5060"
"Wolverhampton City Council","http://opendatacommunities.org/id/metropolitan-district-council/wolverhampton","716776","NHS Supply Chain","1018258000","740.00","TPP - Public Health Contracts","130215757","11/05/2018","Contracts","Healthy Start to Life","R5060"
"Wolverhampton City Council","http://opendatacommunities.org/id/metropolitan-district-council/wolverhampton","716806","Peak Activity Services Ltd","2554","7,375.00","TPP - Alternative Provision of Education","130215865","11/05/2018","Specialist Support","Alternative Provision","R5037"
"Wolverhampton City Council","http://opendatacommunities.org/id/metropolitan-district-council/wolverhampton","716806","Peak Activity Services Ltd","3135","16,660.00","TPP - Alternative Provision of Education","130214191","02/05/2018","Specialist Support","Alternative Provision","R5037"
"Wolverhampton City Council","http://opendatacommunities.org/id/metropolitan-district-council/wolverhampton","716806","Peak Activity Services Ltd","3180","-5,500.00","TPP - Alternative Provision of Education","130215867","23/05/2018","Specialist Support","Alternative Provision","R5037"
"Wolverhampton City Council","http://opendatacommunities.org/id/metropolitan-district-council/wolverhampton","716806","Peak Activity Services Ltd","2742","2,635.00","TPP - Alternative Provision of Education","130215866","11/05/2018","Specialist Support","Alternative Provision","R5037"
"Wolverhampton City Council","http://opendatacommunities.org/id/metropolitan-district-council/wolverhampton","716806","Peak Activity Services Ltd","3181","18,880.00","TPP - Alternative Provision of Education","130215868","23/05/2018","Specialist Support","Alternative Provision","R5037"
"Wolverhampton City Council","http://opendatacommunities.org/id/metropolitan-district-council/wolverhampton","716818","Ethnic Minority Council","Blue Bill 01.05.18","115.00","Room Hire","130215180","04/05/2018","Governance Services","Equalities","R9230"
"Wolverhampton City Council","http://opendatacommunities.org/id/metropolitan-district-council/wolverhampton","716822","Connell Brothers Limited","218/048","1,458.13","Construction and Conversion","130215625","11/05/2018","-","GF - Maintenance of Non Highway Structures","C1100"
"Wolverhampton City Council","http://opendatacommunities.org/id/metropolitan-district-council/wolverhampton","716928","Hadley Learning Community","P17462020180529","650.00","Grant Payments to Individuals","190463756","30/05/2018","Looked After Children","LAC Education Team (LACE)","R6402"
"Wolverhampton City Council","http://opendatacommunities.org/id/metropolitan-district-council/wolverhampton","716928","Hadley Learning Community","P17462020180529","600.00","Grant Payments to Individuals","190463756","30/05/2018","Looked After Children","LAC Education Team (LACE)","R6402"
"Wolverhampton City Council","http://opendatacommunities.org/id/metropolitan-district-council/wolverhampton","717045","Exactrak","SLS/50353149","495.00","Equipment - R & M","130214946","23/05/2018","Highways Maintenance","Winter Maintenance","R4003"
"Wolverhampton City Council","http://opendatacommunities.org/id/metropolitan-district-council/wolverhampton","717069","Alpha Graphics","5239","3,018.00","Marketing \ Non-staff advertising","130215758","16/05/2018","Corporate Communications","Communications & Marketing - General","R4317"
"Wolverhampton City Council","http://opendatacommunities.org/id/metropolitan-district-council/wolverhampton","717089","Mr Tony Watkin","INVTW35","7,500.00","Services - Professional Fees","130215157","11/05/2018","Legal Services","Centralised External Legal Costs","R4400"
"Wolverhampton City Council","http://opendatacommunities.org/id/metropolitan-district-council/wolverhampton","717089","Mr Tony Watkin","INVTW12","1,750.00","Services - Professional Fees","130215759","11/05/2018","Legal Services","Centralised External Legal Costs","R4400"
"Wolverhampton City Council","http://opendatacommunities.org/id/metropolitan-district-council/wolverhampton","717089","Mr Tony Watkin","172116/TE/16084151","600.00","Services - Professional Fees","130215156","25/05/2018","Public Protection","Trading Standards","R4400"
"Wolverhampton City Council","http://opendatacommunities.org/id/metropolitan-district-council/wolverhampton","717089","Mr Tony Watkin","172116/TW/180917","4,700.00","Services - Professional Fees","130214050","02/05/2018","Public Protection","Trading Standards","R4400"
"Wolverhampton City Council","http://opendatacommunities.org/id/metropolitan-district-council/wolverhampton","717089","Mr Tony Watkin","INVTW22","1,572.50","Services - Professional Fees","130215760","11/05/2018","Legal Services","Centralised External Legal Costs","R4400"
"Wolverhampton City Council","http://opendatacommunities.org/id/metropolitan-district-council/wolverhampton","717090","The Solicitors Group","E51894","102.00","Training Expenses","130216039","23/05/2018","Legal Services","Legal Services","R1650"
"Wolverhampton City Council","http://opendatacommunities.org/id/metropolitan-district-council/wolverhampton","717101","Dorma UK Limited","0000176725","121.00","R&M - Departmental planned (external)","130215626","23/05/2018","Maintenance Programme","Centralised R&M","R2001"
"Wolverhampton City Council","http://opendatacommunities.org/id/metropolitan-district-council/wolverhampton","717109","Westcroft School","P17289120180504","600.00","Grant Payments to Individuals","190454802","09/05/2018","Looked After Children","LAC Education Team (LACE)","R6402"
"Wolverhampton City Council","http://opendatacommunities.org/id/metropolitan-district-council/wolverhampton","717109","Westcroft School","P17289120180504","600.00","Grant Payments to Individuals","190454802","09/05/2018","Looked After Children","LAC Education Team (LACE)","R6402"
"Wolverhampton City Council","http://opendatacommunities.org/id/metropolitan-district-council/wolverhampton","717109","Westcroft School","P17289120180504","600.00","Grant Payments to Individuals","190454802","09/05/2018","Looked After Children","LAC Education Team (LACE)","R6402"
"Wolverhampton City Council","http://opendatacommunities.org/id/metropolitan-district-council/wolverhampton","717109","Westcroft School","P17289120180504","600.00","Grant Payments to Individuals","190454802","09/05/2018","Looked After Children","LAC Education Team (LACE)","R6402"
"Wolverhampton City Council","http://opendatacommunities.org/id/metropolitan-district-council/wolverhampton","717109","Westcroft School","P17289120180504","600.00","Grant Payments to Individuals","190454802","09/05/2018","Looked After Children","LAC Education Team (LACE)","R6402"
"Wolverhampton City Council","http://opendatacommunities.org/id/metropolitan-district-council/wolverhampton","717109","Westcroft School","P17289120180504","600.00","Grant Payments to Individuals","190454802","09/05/2018","Looked After Children","LAC Education Team (LACE)","R6402"
"Wolverhampton City Council","http://opendatacommunities.org/id/metropolitan-district-council/wolverhampton","717109","Westcroft School","P17289120180504","600.00","Grant Payments to Individuals","190454802","09/05/2018","Looked After Children","LAC Education Team (LACE)","R6402"
"Wolverhampton City Council","http://opendatacommunities.org/id/metropolitan-district-council/wolverhampton","717120","David Gell Consultancy","278","650.00","Training Expenses","130214867","23/05/2018","Public Service Reform","Workforce Development","R1650"
"Wolverhampton City Council","http://opendatacommunities.org/id/metropolitan-district-council/wolverhampton","717125","New Chapters Fostercare","P172713 27051820180504","2,759.32","TPP - Placement Foster Care Agency","190454780","09/05/2018","Looked After Children","Out of City Placements","R5602"
"Wolverhampton City Council","http://opendatacommunities.org/id/metropolitan-district-council/wolverhampton","717125","New Chapters Fostercare","P172713 27051820180504","2,759.32","TPP - Placement Foster Care Agency","190454780","09/05/2018","Looked After Children","Out of City Placements","R5602"
"Wolverhampton City Council","http://opendatacommunities.org/id/metropolitan-district-council/wolverhampton","717164","Adoption Focus","FSAF17623","18,000.00","TPP - Payments to voluntary groups","130216586","23/05/2018","Looked After Children","Adoption and Residence Team & Allowances","R5200"
"Wolverhampton City Council","http://opendatacommunities.org/id/metropolitan-district-council/wolverhampton","717167","Foster Talk","16401","112.11","Materials","130215158","09/05/2018","Looked After Children","Fostering Team & Allowances","R4007"
"Wolverhampton City Council","http://opendatacommunities.org/id/metropolitan-district-council/wolverhampton","717189","Bromford Housing Group Limited","P172315 27051820180504","4,537.96","TPP - Residential Care - Long Term","190455004","09/05/2018","Learning Disabilities Care Purchasing","LD Care Purchasing (Spot Placements)","R5400"
"Wolverhampton City Council","http://opendatacommunities.org/id/metropolitan-district-council/wolverhampton","717189","Bromford Housing Group Limited","P172315 27051820180504","4,537.96","TPP - Residential Care - Long Term","190455004","09/05/2018","Learning Disabilities Care Purchasing","LD Care Purchasing (Spot Placements)","R5400"
"Wolverhampton City Council","http://opendatacommunities.org/id/metropolitan-district-council/wolverhampton","717189","Bromford Housing Group Limited","P172315 27051820180504","5,192.00","TPP - Residential Care - Short Term","190455004","09/05/2018","Learning Disabilities Care Purchasing","LD Care Purchasing (Spot Placements)","R5401"
"Wolverhampton City Council","http://opendatacommunities.org/id/metropolitan-district-council/wolverhampton","717189","Bromford Housing Group Limited","P172315 27051820180504","4,536.00","TPP - Residential Care - Long Term","190455004","09/05/2018","Learning Disabilities Care Purchasing","LD Care Purchasing (Spot Placements)","R5400"
"Wolverhampton City Council","http://opendatacommunities.org/id/metropolitan-district-council/wolverhampton","717189","Bromford Housing Group Limited","P172315 27051820180504","4,537.96","TPP - Residential Care - Long Term","190455004","09/05/2018","Learning Disabilities Care Purchasing","LD Care Purchasing (Spot Placements)","R5400"
"Wolverhampton City Council","http://opendatacommunities.org/id/metropolitan-district-council/wolverhampton","717189","Bromford Housing Group Limited","P172315 27051820180504","4,537.96","TPP - Residential Care - Long Term","190455004","09/05/2018","Learning Disabilities Care Purchasing","LD Care Purchasing (Spot Placements)","R5400"
"Wolverhampton City Council","http://opendatacommunities.org/id/metropolitan-district-council/wolverhampton","717189","Bromford Housing Group Limited","P172315 27051820180504","4,537.96","TPP - Residential Care - Long Term","190455004","09/05/2018","Learning Disabilities Care Purchasing","LD Care Purchasing (Spot Placements)","R5400"
"Wolverhampton City Council","http://opendatacommunities.org/id/metropolitan-district-council/wolverhampton","717189","Bromford Housing Group Limited","P172315 27051820180504","4,537.96","TPP - Residential Care - Long Term","190455004","09/05/2018","Learning Disabilities Care Purchasing","LD Care Purchasing (Spot Placements)","R5400"
"Wolverhampton City Council","http://opendatacommunities.org/id/metropolitan-district-council/wolverhampton","717191","Movecorp Limited","102968","3,928.66","Storage","130214546","23/05/2018","Corporate Asset Management","Future Space Decant Area","R4910"
"Wolverhampton City Council","http://opendatacommunities.org/id/metropolitan-district-council/wolverhampton","717191","Movecorp Limited","102768","9,072.00","Storage","130213029","09/05/2018","Visitor Economy","Civic Halls - CHIP","R4910"
"Wolverhampton City Council","http://opendatacommunities.org/id/metropolitan-district-council/wolverhampton","717191","Movecorp Limited","102866","50.00","Storage","130213908","16/05/2018","Independent Living Service","Independent Living Service","R4910"
"Wolverhampton City Council","http://opendatacommunities.org/id/metropolitan-district-council/wolverhampton","717191","Movecorp Limited","103068","288.00","Storage","130215456","30/05/2018","Safeguarding","Court of Protection, Funerals and Protection of Property","R4910"
"Wolverhampton City Council","http://opendatacommunities.org/id/metropolitan-district-council/wolverhampton","717191","Movecorp Limited","102993","190.00","Fixtures and Fittings - R&M","130214868","23/05/2018","Learning Disability Provider","Ernest Bold Court","R2502"
"Wolverhampton City Council","http://opendatacommunities.org/id/metropolitan-district-council/wolverhampton","717191","Movecorp Limited","102754","1,878.00","Storage","130213027","09/05/2018","Corporate Asset Management","Future Space Decant Area","R4910"
"Wolverhampton City Council","http://opendatacommunities.org/id/metropolitan-district-council/wolverhampton","717191","Movecorp Limited","102967","6,296.90","Storage","130214545","23/05/2018","Corporate Asset Management","Future Space Decant Area","R4910"
"Wolverhampton City Council","http://opendatacommunities.org/id/metropolitan-district-council/wolverhampton","717191","Movecorp Limited","102767","10,364.40","Storage","130213028","09/05/2018","Visitor Economy","Civic Halls - CHIP","R4910"
"Wolverhampton City Council","http://opendatacommunities.org/id/metropolitan-district-council/wolverhampton","717191","Movecorp Limited","103006","13,480.15","Storage","130215159","25/05/2018","Corporate Asset Management","Future Space Decant Area","R4910"
"Wolverhampton City Council","http://opendatacommunities.org/id/metropolitan-district-council/wolverhampton","717191","Movecorp Limited","102111","50.00","Equipment - R & M","130216587","23/05/2018","Independent Living Service","Independent Living Service","R4003"
"Wolverhampton City Council","http://opendatacommunities.org/id/metropolitan-district-council/wolverhampton","717191","Movecorp Limited","102734","50.00","Storage","130212880","09/05/2018","Independent Living Service","Independent Living Service","R4910"
"Wolverhampton City Council","http://opendatacommunities.org/id/metropolitan-district-council/wolverhampton","717191","Movecorp Limited","103088","340.00","Storage","130215627","30/05/2018","Early Intervention","HOS Early Intervention","R4910"
"Wolverhampton City Council","http://opendatacommunities.org/id/metropolitan-district-council/wolverhampton","717234","NEW PARK - Northern House Academy","Northern House Special 50% Summer Term 18/19 Interim","250,000.00","Grant Payments","190455735","11/05/2018","Schools","Special Schools Top Up Contingency","R4700"
"Wolverhampton City Council","http://opendatacommunities.org/id/metropolitan-district-council/wolverhampton","717234","NEW PARK - Northern House Academy","P17289120180504","600.00","Grant Payments to Individuals","190454802","09/05/2018","Looked After Children","LAC Education Team (LACE)","R6402"
"Wolverhampton City Council","http://opendatacommunities.org/id/metropolitan-district-council/wolverhampton","717234","NEW PARK - Northern House Academy","P17289120180504","600.00","Grant Payments to Individuals","190454802","09/05/2018","Looked After Children","LAC Education Team (LACE)","R6402"
"Wolverhampton City Council","http://opendatacommunities.org/id/metropolitan-district-council/wolverhampton","717234","NEW PARK - Northern House Academy","P17289120180504","600.00","Grant Payments to Individuals","190454802","09/05/2018","Looked After Children","LAC Education Team (LACE)","R6402"
"Wolverhampton City Council","http://opendatacommunities.org/id/metropolitan-district-council/wolverhampton","717234","NEW PARK - Northern House Academy","P17289120180504","600.00","Grant Payments to Individuals","190454802","09/05/2018","Looked After Children","LAC Education Team (LACE)","R6402"
"Wolverhampton City Council","http://opendatacommunities.org/id/metropolitan-district-council/wolverhampton","717234","NEW PARK - Northern House Academy","P17289120180504","600.00","Grant Payments to Individuals","190454802","09/05/2018","Looked After Children","LAC Education Team (LACE)","R6402"
"Wolverhampton City Council","http://opendatacommunities.org/id/metropolitan-district-council/wolverhampton","717234","NEW PARK - Northern House Academy","P17289120180504","600.00","Grant Payments to Individuals","190454802","09/05/2018","Looked After Children","LAC Education Team (LACE)","R6402"
"Wolverhampton City Council","http://opendatacommunities.org/id/metropolitan-district-council/wolverhampton","717234","NEW PARK - Northern House Academy","P17289120180504","600.00","Grant Payments to Individuals","190454802","09/05/2018","Looked After Children","LAC Education Team (LACE)","R6402"
"Wolverhampton City Council","http://opendatacommunities.org/id/metropolitan-district-council/wolverhampton","717234","NEW PARK - Northern House Academy","P17289120180504","600.00","Grant Payments to Individuals","190454802","09/05/2018","Looked After Children","LAC Education Team (LACE)","R6402"
"Wolverhampton City Council","http://opendatacommunities.org/id/metropolitan-district-council/wolverhampton","717234","NEW PARK - Northern House Academy","Northern House Special Primary Phase Inv no NHAT_0520","30,850.00","Grant Payments","190455737","11/05/2018","Schools","Special Schools Top Up Contingency","R4700"
"Wolverhampton City Council","http://opendatacommunities.org/id/metropolitan-district-council/wolverhampton","717256","GovDelivery Inc","94697","1,420.25","Marketing \ Non-staff advertising","130214055","02/05/2018","Corporate Communications","Communications & Marketing - General","R4317"
"Wolverhampton City Council","http://opendatacommunities.org/id/metropolitan-district-council/wolverhampton","717256","GovDelivery Inc","94694","1,420.25","Marketing \ Non-staff advertising","130214054","02/05/2018","Corporate Communications","Communications & Marketing - General","R4317"
"Wolverhampton City Council","http://opendatacommunities.org/id/metropolitan-district-council/wolverhampton","717256","GovDelivery Inc","94703","1,420.25","Marketing \ Non-staff advertising","130214058","02/05/2018","Corporate Communications","Communications & Marketing - General","R4317"
"Wolverhampton City Council","http://opendatacommunities.org/id/metropolitan-district-council/wolverhampton","717256","GovDelivery Inc","98418","1,420.25","Marketing \ Non-staff advertising","130217186","30/05/2018","Corporate Communications","Communications & Marketing - General","R4317"
"Wolverhampton City Council","http://opendatacommunities.org/id/metropolitan-district-council/wolverhampton","717256","GovDelivery Inc","98363","1,420.25","Marketing \ Non-staff advertising","130216994","30/05/2018","Corporate Communications","Communications & Marketing - General","R4317"
"Wolverhampton City Council","http://opendatacommunities.org/id/metropolitan-district-council/wolverhampton","717256","GovDelivery Inc","94691","1,420.25","Marketing \ Non-staff advertising","130214052","02/05/2018","Corporate Communications","Communications & Marketing - General","R4317"
"Wolverhampton City Council","http://opendatacommunities.org/id/metropolitan-district-council/wolverhampton","717256","GovDelivery Inc","94692","1,420.25","Marketing \ Non-staff advertising","130214053","02/05/2018","Corporate Communications","Communications & Marketing - General","R4317"
"Wolverhampton City Council","http://opendatacommunities.org/id/metropolitan-district-council/wolverhampton","717256","GovDelivery Inc","94701","1,420.25","Marketing \ Non-staff advertising","130214057","02/05/2018","Corporate Communications","Communications & Marketing - General","R4317"
"Wolverhampton City Council","http://opendatacommunities.org/id/metropolitan-district-council/wolverhampton","717256","GovDelivery Inc","94699","1,420.25","Marketing \ Non-staff advertising","130214056","02/05/2018","Corporate Communications","Communications & Marketing - General","R4317"
"Wolverhampton City Council","http://opendatacommunities.org/id/metropolitan-district-council/wolverhampton","717303","UK Document Management","138103","2,950.00","Services - Professional Fees","130214673","02/05/2018","Human Resources","HR Advice","R4400"
"Wolverhampton City Council","http://opendatacommunities.org/id/metropolitan-district-council/wolverhampton","717348","Tractivity Limited","253","3,750.00","Computing - Licences","130215628","30/05/2018","Enterprise","Business Engagement","R4535"
"Wolverhampton City Council","http://opendatacommunities.org/id/metropolitan-district-council/wolverhampton","717404","Manor Multi Academy Trust - Current a/c (payment from LA)","Manor Academy Early Years Payment Spring Final 1718","17,644.17","Grant Payments","190458594","18/05/2018","Schools","Academy Early years","R4700"
"Wolverhampton City Council","http://opendatacommunities.org/id/metropolitan-district-council/wolverhampton","717406","Cooksongold","BI1854275","88.61","Equipment - Purchase","130216279","25/05/2018","Adult Education","Creative Studies Delivery Area","R4000"
"Wolverhampton City Council","http://opendatacommunities.org/id/metropolitan-district-council/wolverhampton","717421","The Child Psychology Service","1380","864.50","Direct Work With Children","130215761","23/05/2018","Looked After Children","Adoption Support Fund","R6310"
"Wolverhampton City Council","http://opendatacommunities.org/id/metropolitan-district-council/wolverhampton","717453","SHB Hire Ltd","166714","-22.00","Hire of Vehicles","190455236","09/05/2018","Fleet Services","Fleet Management","R3200"
"Wolverhampton City Council","http://opendatacommunities.org/id/metropolitan-district-council/wolverhampton","717453","SHB Hire Ltd","10934685","484.00","Hire of Vehicles","190455211","09/05/2018","Fleet Services","Fleet Management","R3200"
"Wolverhampton City Council","http://opendatacommunities.org/id/metropolitan-district-council/wolverhampton","717453","SHB Hire Ltd","166713","-22.00","Hire of Vehicles","190455235","09/05/2018","Fleet Services","Fleet Management","R3200"
"Wolverhampton City Council","http://opendatacommunities.org/id/metropolitan-district-council/wolverhampton","717453","SHB Hire Ltd","10934683","484.00","Hire of Vehicles","190455209","09/05/2018","Fleet Services","Fleet Management","R3200"
"Wolverhampton City Council","http://opendatacommunities.org/id/metropolitan-district-council/wolverhampton","717453","SHB Hire Ltd","10934684","484.00","Hire of Vehicles","190455210","09/05/2018","Fleet Services","Fleet Management","R3200"
"Wolverhampton City Council","http://opendatacommunities.org/id/metropolitan-district-council/wolverhampton","717453","SHB Hire Ltd","166712","-22.00","Hire of Vehicles","190455234","09/05/2018","Fleet Services","Fleet Management","R3200"
"Wolverhampton City Council","http://opendatacommunities.org/id/metropolitan-district-council/wolverhampton","717464","Dudley MBC/Alder Coppice Primary School","P17289120180504","600.00","Grant Payments to Individuals","190454802","09/05/2018","Looked After Children","LAC Education Team (LACE)","R6402"
"Wolverhampton City Council","http://opendatacommunities.org/id/metropolitan-district-council/wolverhampton","717476","JAS Associates Ltd","CWC1008","192.00","Computing - Purchase of Hardware","130215870","25/05/2018","Operation & Maintenance of Existing Network","Traffic Signals","R4530"
"Wolverhampton City Council","http://opendatacommunities.org/id/metropolitan-district-council/wolverhampton","717551","Knight Frank LLP","90060738","2,050.00","Services - Professional Fees","130214869","09/05/2018","City Development","City Learning Quarter Regen Reserve","R4400"
"Wolverhampton City Council","http://opendatacommunities.org/id/metropolitan-district-council/wolverhampton","717551","Knight Frank LLP","90066458","2,250.00","Services - Professional Fees","130213259","09/05/2018","City Development","City Learning Quarter Regen Reserve","R4400"
"Wolverhampton City Council","http://opendatacommunities.org/id/metropolitan-district-council/wolverhampton","717591","Engaging Communities Staffordshire CIC","324","4,321.08","TPP - Social Care Support Services","130215161","11/05/2018","Strategic Commissioning","Local Reform and Community Voices Grant","R5501"
"Wolverhampton City Council","http://opendatacommunities.org/id/metropolitan-district-council/wolverhampton","717591","Engaging Communities Staffordshire CIC","323","16,190.75","TPP - Social Care Support Services","130215160","11/05/2018","Strategic Commissioning","Local Reform and Community Voices Grant","R5501"
"Wolverhampton City Council","http://opendatacommunities.org/id/metropolitan-district-council/wolverhampton","717652","Scotts Hire Limited","195941","360.00","Equipment - Hire","130214871","25/05/2018","Bereavement Services","Cemeteries","R4001"
"Wolverhampton City Council","http://opendatacommunities.org/id/metropolitan-district-council/wolverhampton","717654","Coram Baaf Adoption and Fostering Academy Ltd","CONF/999","150.00","Training Expenses","130215762","16/05/2018","Looked After Children","Adoption and Residence Team & Allowances","R1650"
"Wolverhampton City Council","http://opendatacommunities.org/id/metropolitan-district-council/wolverhampton","717654","Coram Baaf Adoption and Fostering Academy Ltd","18-FM/01405/MEM","4,586.89","Subscriptions","130215162","09/05/2018","Looked After Children","Adoption and Residence Team & Allowances","R4701"
"Wolverhampton City Council","http://opendatacommunities.org/id/metropolitan-district-council/wolverhampton","717656","Perry Hall Multi Academy Trust T/A Dunstall Hill Primary Sch","Dunstall Hill Academy Early Years Payment Spring Term Final 1718","20,277.50","Grant Payments","190458596","18/05/2018","Schools","Academy Early years","R4700"
"Wolverhampton City Council","http://opendatacommunities.org/id/metropolitan-district-council/wolverhampton","717658","Elston Hall T/A Palmers Cross Primary","Palmer�s Cross Academy Early Years Payment Spring Term Final 1718","17,327.17","Grant Payments","190458602","18/05/2018","Schools","Academy Early years","R4700"
"Wolverhampton City Council","http://opendatacommunities.org/id/metropolitan-district-council/wolverhampton","717684","Jim Hudson","15LC-026","450.00","No Recourse to Public Funds","130215163","30/05/2018","Child Protection","CIN/CP Social Work Unit - Area 4","R6314"
"Wolverhampton City Council","http://opendatacommunities.org/id/metropolitan-district-council/wolverhampton","717684","Jim Hudson","15LC-024","450.00","No Recourse to Public Funds","130214355","23/05/2018","Child Protection","CIN/CP Social Work Unit - Area 4","R6314"
"Wolverhampton City Council","http://opendatacommunities.org/id/metropolitan-district-council/wolverhampton","717704","St Martins Multi Academy T/A Grove Academy","Grove Academy Early Years Payment Spring Term Final 1718","19,034.75","Grant Payments","190458595","18/05/2018","Schools","Academy Early years","R4700"
"Wolverhampton City Council","http://opendatacommunities.org/id/metropolitan-district-council/wolverhampton","717743","Sanderson Funerals","025","428.65","Hire of Vehicles","130215871","25/05/2018","Public Service Reform","Coroners Service","R3200"
"Wolverhampton City Council","http://opendatacommunities.org/id/metropolitan-district-council/wolverhampton","717743","Sanderson Funerals","HMCC 023","908.76","Hire of Vehicles","130214954","02/05/2018","Public Service Reform","Coroners Service","R3200"
"Wolverhampton City Council","http://opendatacommunities.org/id/metropolitan-district-council/wolverhampton","717743","Sanderson Funerals","HMCH025","541.92","Hire of Vehicles","130215872","25/05/2018","Public Service Reform","Coroners Service","R3200"
"Wolverhampton City Council","http://opendatacommunities.org/id/metropolitan-district-council/wolverhampton","717755","Toybox Child Care Services","TB31EHT","384.00","TPP - Child Care provided for client","130214192","16/05/2018","Looked After Children","Fostering Team & Allowances","R5034"
"Wolverhampton City Council","http://opendatacommunities.org/id/metropolitan-district-council/wolverhampton","717767","Henry Howard Finance Plc","WCC0010","385.37","Services - Supplies and Services to service users","130213263","09/05/2018","Learning Disability Provider","City Links","R4408"
"Wolverhampton City Council","http://opendatacommunities.org/id/metropolitan-district-council/wolverhampton","717795","Bramble Hub Limited","7858","18,500.00","Computing - Licences","130213264","09/05/2018","Public Service Reform","Electoral Registration","R4535"
"Wolverhampton City Council","http://opendatacommunities.org/id/metropolitan-district-council/wolverhampton","717852","Wylde Green Primary School","P17462020180529","600.00","Grant Payments to Individuals","190463756","30/05/2018","Looked After Children","LAC Education Team (LACE)","R6402"
"Wolverhampton City Council","http://opendatacommunities.org/id/metropolitan-district-council/wolverhampton","717852","Wylde Green Primary School","P17462020180529","600.00","Grant Payments to Individuals","190463756","30/05/2018","Looked After Children","LAC Education Team (LACE)","R6402"
"Wolverhampton City Council","http://opendatacommunities.org/id/metropolitan-district-council/wolverhampton","717855","Wood Green Junior School","P17462020180529","600.00","Grant Payments to Individuals","190463756","30/05/2018","Looked After Children","LAC Education Team (LACE)","R6402"
"Wolverhampton City Council","http://opendatacommunities.org/id/metropolitan-district-council/wolverhampton","717855","Wood Green Junior School","P17462020180529","600.00","Grant Payments to Individuals","190463756","30/05/2018","Looked After Children","LAC Education Team (LACE)","R6402"
"Wolverhampton City Council","http://opendatacommunities.org/id/metropolitan-district-council/wolverhampton","717869","Guy�s & St Thomas� NHS Foundation Trust","3238679 GUM M10-12 2018","342.00","TPP - Public Health Contracts","190463607","30/05/2018","Contracts","Sexual Health","R5060"
"Wolverhampton City Council","http://opendatacommunities.org/id/metropolitan-district-council/wolverhampton","717962","The Korn Ferry Hay Group Ltd","1195025961","8,000.00","Training Expenses","130215324","18/05/2018","Public Service Reform","Centralised Training","R1650"
"Wolverhampton City Council","http://opendatacommunities.org/id/metropolitan-district-council/wolverhampton","717980","Phormium Ltd t/a Brannie Ties","4330","205.70","Clothing / Uniforms","130215458","23/05/2018","Central Corporate Budgets","Miscellaneous Corporate Costs","R4201"
"Wolverhampton City Council","http://opendatacommunities.org/id/metropolitan-district-council/wolverhampton","717980","Phormium Ltd t/a Brannie Ties","4330","1,820.00","Clothing / Uniforms","130215458","23/05/2018","Central Corporate Budgets","Miscellaneous Corporate Costs","R4201"
"Wolverhampton City Council","http://opendatacommunities.org/id/metropolitan-district-council/wolverhampton","717980","Phormium Ltd t/a Brannie Ties","4330","10.00","Comms - Postage","130215458","23/05/2018","Central Corporate Budgets","Miscellaneous Corporate Costs","R4503"
"Wolverhampton City Council","http://opendatacommunities.org/id/metropolitan-district-council/wolverhampton","717992","Rock Townsend Ltd","RT0008","1,000.00","Services - Professional Fees","130214548","02/05/2018","Capital Programme","Capital Programme Team","R4400"
"Wolverhampton City Council","http://opendatacommunities.org/id/metropolitan-district-council/wolverhampton","718086","St Edmund�s Catholic Academy","P17289120180504","600.00","Grant Payments to Individuals","190454802","09/05/2018","Looked After Children","LAC Education Team (LACE)","R6402"
"Wolverhampton City Council","http://opendatacommunities.org/id/metropolitan-district-council/wolverhampton","718086","St Edmund�s Catholic Academy","P17289120180504","600.00","Grant Payments to Individuals","190454802","09/05/2018","Looked After Children","LAC Education Team (LACE)","R6402"
"Wolverhampton City Council","http://opendatacommunities.org/id/metropolitan-district-council/wolverhampton","718086","St Edmund�s Catholic Academy","P17289120180504","600.00","Grant Payments to Individuals","190454802","09/05/2018","Looked After Children","LAC Education Team (LACE)","R6402"
"Wolverhampton City Council","http://opendatacommunities.org/id/metropolitan-district-council/wolverhampton","718086","St Edmund�s Catholic Academy","P17289120180504","600.00","Grant Payments to Individuals","190454802","09/05/2018","Looked After Children","LAC Education Team (LACE)","R6402"
"Wolverhampton City Council","http://opendatacommunities.org/id/metropolitan-district-council/wolverhampton","718086","St Edmund�s Catholic Academy","P17289120180504","600.00","Grant Payments to Individuals","190454802","09/05/2018","Looked After Children","LAC Education Team (LACE)","R6402"
"Wolverhampton City Council","http://opendatacommunities.org/id/metropolitan-district-council/wolverhampton","718086","St Edmund�s Catholic Academy","P17289120180504","600.00","Grant Payments to Individuals","190454802","09/05/2018","Looked After Children","LAC Education Team (LACE)","R6402"
"Wolverhampton City Council","http://opendatacommunities.org/id/metropolitan-district-council/wolverhampton","718108","BTE Plant Sales Ltd","170391","71.22","Equipment - Purchase","190461320","23/05/2018","Fleet Services","Fleet Management","R4000"
"Wolverhampton City Council","http://opendatacommunities.org/id/metropolitan-district-council/wolverhampton","718136","Leons Coach Travel","26050","790.00","Client Transport","130216995","25/05/2018","Public Service Reform","Civic Events","R3042"
"Wolverhampton City Council","http://opendatacommunities.org/id/metropolitan-district-council/wolverhampton","718179","Turfleet Hire Ltd","201261","900.00","Hire of Plant","130213626","25/05/2018","Environmental Maintenance","Ground Maintenance East","R3201"
"Wolverhampton City Council","http://opendatacommunities.org/id/metropolitan-district-council/wolverhampton","718217","LCP Properties Limited","638695","917.06","Service Charges","130214059","04/05/2018","Parking Services","Shopmobility","R2205"
"Wolverhampton City Council","http://opendatacommunities.org/id/metropolitan-district-council/wolverhampton","718228","The Lady Forester Centre","P173884 27051820180521","2,444.29","TPP - Residential Care - Long Term","190461252","23/05/2018","Older People Care Purchasing","OP Care Purchasing (Spot Placements)","R5400"
"Wolverhampton City Council","http://opendatacommunities.org/id/metropolitan-district-council/wolverhampton","718237","Rollover","SI586508","251.40","Provisions (Resale)","130214356","23/05/2018","Leisure Services","WV Active Catering","R4102"
"Wolverhampton City Council","http://opendatacommunities.org/id/metropolitan-district-council/wolverhampton","718247","Carrie Slawinska","CS029","897.81","Services - Professional Fees","130214550","09/05/2018","Visitor Economy","Touring Cost  - ACE NPO","R4400"
"Wolverhampton City Council","http://opendatacommunities.org/id/metropolitan-district-council/wolverhampton","718266","ELS Exterior Lighting Solutions (UK) Limited","8161","1,216.00","Materials","130214193","23/05/2018","Street Lighting","Street Lighting Maintenance","R4007"
"Wolverhampton City Council","http://opendatacommunities.org/id/metropolitan-district-council/wolverhampton","718291","Interserve Site Services","610072","500.45","Insurance - General","130214060","30/05/2018","Environmental Maintenance","Parks - Ranger Service","R4962"
"Wolverhampton City Council","http://opendatacommunities.org/id/metropolitan-district-council/wolverhampton","718291","Interserve Site Services","610072","166.43","Insurance - General","130214060","30/05/2018","Audit Services","Motor Vehicles","R4962"
"Wolverhampton City Council","http://opendatacommunities.org/id/metropolitan-district-council/wolverhampton","718292","First Aid Warehouse","340419","9.60","Materials","130212702","04/05/2018","Older People Provider Services","Bradley Lodge Resource Centre","R4007"
"Wolverhampton City Council","http://opendatacommunities.org/id/metropolitan-district-council/wolverhampton","718292","First Aid Warehouse","287186 DEBIT","45.95","Materials","130216153","16/05/2018","Older People Provider Services","Bradley Lodge Resource Centre","R4007"
"Wolverhampton City Council","http://opendatacommunities.org/id/metropolitan-district-council/wolverhampton","718292","First Aid Warehouse","287186 corr","45.95","Materials","130216152","16/05/2018","Older People Provider Services","Bradley Lodge Resource Centre","R4007"
"Wolverhampton City Council","http://opendatacommunities.org/id/metropolitan-district-council/wolverhampton","718292","First Aid Warehouse","340418","40.00","Materials","130212701","04/05/2018","Older People Provider Services","Bradley Lodge Resource Centre","R4007"
"Wolverhampton City Council","http://opendatacommunities.org/id/metropolitan-district-council/wolverhampton","718292","First Aid Warehouse","10299","-6.95","Materials","130216155","16/05/2018","Older People Provider Services","Reablement Team","R4007"
"Wolverhampton City Council","http://opendatacommunities.org/id/metropolitan-district-council/wolverhampton","718292","First Aid Warehouse","10301","-6.95","Materials","130216154","16/05/2018","Early Intervention","EIP Locality 4 - Bingley","R4007"
"Wolverhampton City Council","http://opendatacommunities.org/id/metropolitan-district-council/wolverhampton","718304","St Johns B&B - Tunbridge Property LTD","139","3,100.00","Accommodation Costs","130204256","09/05/2018","Child Protection","CIN/CP Social Work Unit - Area 2","R4900"
"Wolverhampton City Council","http://opendatacommunities.org/id/metropolitan-district-council/wolverhampton","718304","St Johns B&B - Tunbridge Property LTD","192","1,550.00","No Recourse to Public Funds","130215325","30/05/2018","Child Protection","CIN/CP Social Work Unit - Area 4","R6314"
"Wolverhampton City Council","http://opendatacommunities.org/id/metropolitan-district-council/wolverhampton","718304","St Johns B&B - Tunbridge Property LTD","132","3,000.00","Accommodation Costs","130204255","09/05/2018","Child Protection","CIN/CP Social Work Unit - Area 2","R4900"
"Wolverhampton City Council","http://opendatacommunities.org/id/metropolitan-district-council/wolverhampton","718304","St Johns B&B - Tunbridge Property LTD","193","1,550.00","No Recourse to Public Funds","130215326","30/05/2018","Child Protection","CIN/CP Social Work Unit - Area 4","R6314"
"Wolverhampton City Council","http://opendatacommunities.org/id/metropolitan-district-council/wolverhampton","718304","St Johns B&B - Tunbridge Property LTD","148","3,000.00","Accommodation Costs","130204257","09/05/2018","Child Protection","CIN/CP Social Work Unit - Area 2","R4900"
"Wolverhampton City Council","http://opendatacommunities.org/id/metropolitan-district-council/wolverhampton","718304","St Johns B&B - Tunbridge Property LTD","P17313620180508","1,750.00","TPP - Accommodation","190455342","09/05/2018","Older People Care Purchasing","OP Care Purchasing (Spot Placements)","R5603"
"Wolverhampton City Council","http://opendatacommunities.org/id/metropolitan-district-council/wolverhampton","718304","St Johns B&B - Tunbridge Property LTD","P17313620180508","500.00","TPP - Accommodation","190455342","09/05/2018","Older People Care Purchasing","OP Care Purchasing (Spot Placements)","R5603"
"Wolverhampton City Council","http://opendatacommunities.org/id/metropolitan-district-council/wolverhampton","718304","St Johns B&B - Tunbridge Property LTD","P17313620180508","1,050.00","TPP - Accommodation","190455342","09/05/2018","Older People Care Purchasing","OP Care Purchasing (Spot Placements)","R5603"
"Wolverhampton City Council","http://opendatacommunities.org/id/metropolitan-district-council/wolverhampton","718304","St Johns B&B - Tunbridge Property LTD","P17247020180504","50.00","TPP - Accommodation","190454859","09/05/2018","Learning Disabilities Care Purchasing","LD Care Purchasing (Spot Placements)","R5603"
"Wolverhampton City Council","http://opendatacommunities.org/id/metropolitan-district-council/wolverhampton","718320","Tom Vehicle Rental","7056309","8.00","Hire of Vehicles","190463075","30/05/2018","Fleet Services","Fleet Management","R3200"
"Wolverhampton City Council","http://opendatacommunities.org/id/metropolitan-district-council/wolverhampton","718320","Tom Vehicle Rental","19008705","8.00","Hire of Vehicles","190463071","30/05/2018","Fleet Services","Fleet Management","R3200"
"Wolverhampton City Council","http://opendatacommunities.org/id/metropolitan-district-council/wolverhampton","718320","Tom Vehicle Rental","7056312","8.00","Hire of Vehicles","190463078","30/05/2018","Fleet Services","Fleet Management","R3200"
"Wolverhampton City Council","http://opendatacommunities.org/id/metropolitan-district-council/wolverhampton","718320","Tom Vehicle Rental","7056308","8.00","Hire of Vehicles","190463074","30/05/2018","Fleet Services","Fleet Management","R3200"
"Wolverhampton City Council","http://opendatacommunities.org/id/metropolitan-district-council/wolverhampton","718320","Tom Vehicle Rental","7056311","8.00","Hire of Vehicles","190463077","30/05/2018","Fleet Services","Fleet Management","R3200"
"Wolverhampton City Council","http://opendatacommunities.org/id/metropolitan-district-council/wolverhampton","718320","Tom Vehicle Rental","7056307","8.00","Hire of Vehicles","190463073","30/05/2018","Fleet Services","Fleet Management","R3200"
"Wolverhampton City Council","http://opendatacommunities.org/id/metropolitan-district-council/wolverhampton","718320","Tom Vehicle Rental","7056310","8.00","Hire of Vehicles","190463076","30/05/2018","Fleet Services","Fleet Management","R3200"
"Wolverhampton City Council","http://opendatacommunities.org/id/metropolitan-district-council/wolverhampton","718320","Tom Vehicle Rental","19008706","8.00","Hire of Vehicles","190463072","30/05/2018","Fleet Services","Fleet Management","R3200"
"Wolverhampton City Council","http://opendatacommunities.org/id/metropolitan-district-council/wolverhampton","718321","London Hire Ltd","CR00001888","-27.45","Hire of Vehicles","190455275","09/05/2018","Fleet Services","Fleet Management","R3200"
"Wolverhampton City Council","http://opendatacommunities.org/id/metropolitan-district-council/wolverhampton","718321","London Hire Ltd","INV00035103","840.00","Hire of Vehicles","190455313","09/05/2018","Fleet Services","Fleet Management","R3200"
"Wolverhampton City Council","http://opendatacommunities.org/id/metropolitan-district-council/wolverhampton","718321","London Hire Ltd","INV00035101","300.00","Hire of Vehicles","190455311","09/05/2018","Fleet Services","Fleet Management","R3200"
"Wolverhampton City Council","http://opendatacommunities.org/id/metropolitan-district-council/wolverhampton","718321","London Hire Ltd","INV00035102","300.00","Hire of Vehicles","190455312","09/05/2018","Fleet Services","Fleet Management","R3200"
"Wolverhampton City Council","http://opendatacommunities.org/id/metropolitan-district-council/wolverhampton","718321","London Hire Ltd","INV00035104","840.00","Hire of Vehicles","190455314","09/05/2018","Fleet Services","Fleet Management","R3200"
"Wolverhampton City Council","http://opendatacommunities.org/id/metropolitan-district-council/wolverhampton","718321","London Hire Ltd","INV00035105","840.00","Hire of Vehicles","190455315","09/05/2018","Fleet Services","Fleet Management","R3200"
"Wolverhampton City Council","http://opendatacommunities.org/id/metropolitan-district-council/wolverhampton","718321","London Hire Ltd","INV00033626","549.00","Hire of Vehicles","190455310","09/05/2018","Fleet Services","Fleet Management","R3200"
"Wolverhampton City Council","http://opendatacommunities.org/id/metropolitan-district-council/wolverhampton","718331","Coram Community Campus","AAD/2840/384","1,000.00","Services - Professional Fees","130215165","09/05/2018","Looked After Children","Adoption and Residence Team & Allowances","R4400"
"Wolverhampton City Council","http://opendatacommunities.org/id/metropolitan-district-council/wolverhampton","718344","Charter Office Equipment Limited","174549","4,863.10","Equipment - Purchase","130215875","11/05/2018","Learning Disability Provider","Learning Disabilities Management","R4000"
"Wolverhampton City Council","http://opendatacommunities.org/id/metropolitan-district-council/wolverhampton","718367","Certas Energy UK","9600621","1,493.28","Heating Oil","130216591","30/05/2018","School Planning & Resources","Towers Outdoor Education Centre","R2102"
"Wolverhampton City Council","http://opendatacommunities.org/id/metropolitan-district-council/wolverhampton","718367","Certas Energy UK","9456896","993.40","Heating Oil","130214551","02/05/2018","Highways Maintenance","Patching","R2102"
"Wolverhampton City Council","http://opendatacommunities.org/id/metropolitan-district-council/wolverhampton","718367","Certas Energy UK","9562260","980.00","Heating Oil","130214553","02/05/2018","Highways Maintenance","Patching","R2102"
"Wolverhampton City Council","http://opendatacommunities.org/id/metropolitan-district-council/wolverhampton","718367","Certas Energy UK","9771444","1,510.00","Heating Oil","130216592","30/05/2018","School Planning & Resources","Towers Outdoor Education Centre","R2102"
"Wolverhampton City Council","http://opendatacommunities.org/id/metropolitan-district-council/wolverhampton","718367","Certas Energy UK","9508500","786.88","Heating Oil","130214552","02/05/2018","Highways Maintenance","Patching","R2102"
"Wolverhampton City Council","http://opendatacommunities.org/id/metropolitan-district-council/wolverhampton","718395","Beyond Curious Ltd","INV-0258","310.00","Marketing \ Non-staff advertising","130214194","18/05/2018","Corporate Communications","Communications & Marketing - General","R4317"
"Wolverhampton City Council","http://opendatacommunities.org/id/metropolitan-district-council/wolverhampton","718395","Beyond Curious Ltd","0250 - credit","-125.00","Marketing \ Non-staff advertising","130215338","18/05/2018","Corporate Communications","Communications & Marketing - General","R4317"
"Wolverhampton City Council","http://opendatacommunities.org/id/metropolitan-district-council/wolverhampton","718413","Harj Bains Estate Agents","0000080","850.00","Rent","130163039","25/05/2018","Child Protection","No Recourse to Public Funds - CIN/CP","R2200"
"Wolverhampton City Council","http://opendatacommunities.org/id/metropolitan-district-council/wolverhampton","718413","Harj Bains Estate Agents","0000144","495.00","No Recourse to Public Funds","130213627","11/05/2018","Child Protection","CIN/CP Social Work Unit - Area 1","R6314"
"Wolverhampton City Council","http://opendatacommunities.org/id/metropolitan-district-council/wolverhampton","718413","Harj Bains Estate Agents","0000142","425.00","No Recourse to Public Funds","130212882","02/05/2018","Child Protection","CIN/CP Social Work Unit - Area 3","R6314"
"Wolverhampton City Council","http://opendatacommunities.org/id/metropolitan-district-council/wolverhampton","718429","St Bartholomew�s CE Academy Trust","St Bartholomews Academy Early Years Payment Spring Term Final 1718","23,153.00","Grant Payments","190458597","18/05/2018","Schools","Academy Early years","R4700"
"Wolverhampton City Council","http://opendatacommunities.org/id/metropolitan-district-council/wolverhampton","718450","Furnace Mill Fishery Ltd","171","945.00","R&M - Departmental planned (external)","130214197","16/05/2018","Environmental Maintenance","Parks / Open Spaces - Repairs & Maintenance","R2001"
"Wolverhampton City Council","http://opendatacommunities.org/id/metropolitan-district-council/wolverhampton","718450","Furnace Mill Fishery Ltd","172","925.00","R&M - Departmental planned (external)","130214198","16/05/2018","Environmental Maintenance","Parks / Open Spaces - Repairs & Maintenance","R2001"
"Wolverhampton City Council","http://opendatacommunities.org/id/metropolitan-district-council/wolverhampton","718450","Furnace Mill Fishery Ltd","173","380.00","R&M - Departmental planned (external)","130214199","16/05/2018","Environmental Maintenance","Parks / Open Spaces - Repairs & Maintenance","R2001"
"Wolverhampton City Council","http://opendatacommunities.org/id/metropolitan-district-council/wolverhampton","718450","Furnace Mill Fishery Ltd","174","700.00","R&M - Departmental planned (external)","130214200","18/05/2018","Environmental Maintenance","Parks / Open Spaces - Repairs & Maintenance","R2001"
"Wolverhampton City Council","http://opendatacommunities.org/id/metropolitan-district-council/wolverhampton","718450","Furnace Mill Fishery Ltd","169","950.00","R&M - Departmental planned (external)","130214195","16/05/2018","Environmental Maintenance","Parks / Open Spaces - Repairs & Maintenance","R2001"
"Wolverhampton City Council","http://opendatacommunities.org/id/metropolitan-district-council/wolverhampton","718450","Furnace Mill Fishery Ltd","170","920.00","R&M - Departmental planned (external)","130214196","16/05/2018","Environmental Maintenance","Parks / Open Spaces - Repairs & Maintenance","R2001"
"Wolverhampton City Council","http://opendatacommunities.org/id/metropolitan-district-council/wolverhampton","718462","ProQuest LLC","70516772","9,020.00","Books","130216997","23/05/2018","Strategic Organisation Development","Global Budgets","R4309"
"Wolverhampton City Council","http://opendatacommunities.org/id/metropolitan-district-council/wolverhampton","718497","11KBW Limited","102421","3,133.50","Services - Professional Fees","130215877","11/05/2018","Legal Services","Centralised External Legal Costs","R4400"
"Wolverhampton City Council","http://opendatacommunities.org/id/metropolitan-district-council/wolverhampton","718497","11KBW Limited","98245/001","1,650.00","Services - Professional Fees","130213265","09/05/2018","Legal Services","Centralised External Legal Costs","R4400"
"Wolverhampton City Council","http://opendatacommunities.org/id/metropolitan-district-council/wolverhampton","718499","ENER-G Combined Power Limited","18501069","1,058.67","R&M - Departmental planned (external)","130214674","18/05/2018","Corporate Asset Management","Central Utilities to Recharge","R2001"
"Wolverhampton City Council","http://opendatacommunities.org/id/metropolitan-district-council/wolverhampton","718499","ENER-G Combined Power Limited","18500805","1,058.67","R&M - Departmental planned (external)","130211331","02/05/2018","Corporate Asset Management","Central Utilities to Recharge","R2001"
"Wolverhampton City Council","http://opendatacommunities.org/id/metropolitan-district-council/wolverhampton","718543","Campus Living Villages","P17289620180504","149.00","Client Allowances","190454807","09/05/2018","Mental Health Assesment & Care Management","DA Care Purchasing (Spot Placements)","R6301"
"Wolverhampton City Council","http://opendatacommunities.org/id/metropolitan-district-council/wolverhampton","718543","Campus Living Villages","P17462420180529","149.00","TPP - Accommodation","190463762","30/05/2018","Looked After Children","LAC Transitions Team","R5603"
"Wolverhampton City Council","http://opendatacommunities.org/id/metropolitan-district-council/wolverhampton","718543","Campus Living Villages","P17209520180427","149.00","TPP - Placement Foster Care Inhouse","190452429","02/05/2018","Looked After Children","LAC Transitions Team","R5601"
"Wolverhampton City Council","http://opendatacommunities.org/id/metropolitan-district-council/wolverhampton","718543","Campus Living Villages","P17333520180514","149.00","TPP - Supported Living","190457723","16/05/2018","Looked After Children","LAC Transitions Team","R5422"
"Wolverhampton City Council","http://opendatacommunities.org/id/metropolitan-district-council/wolverhampton","718543","Campus Living Villages","P17397720180521","149.00","TPP - Accommodation","190461439","23/05/2018","Looked After Children","LAC Transitions Team","R5603"
"Wolverhampton City Council","http://opendatacommunities.org/id/metropolitan-district-council/wolverhampton","718603","Project Farm","P17462320180529","100.00","Client Allowances","190463761","30/05/2018","Looked After Children","LAC Transitions Team","R6301"
"Wolverhampton City Council","http://opendatacommunities.org/id/metropolitan-district-council/wolverhampton","718624","Park Lane Day Nursery","P17333020180514","620.00","Client Allowances","190457718","16/05/2018","Looked After Children","Adoption and Residence Team & Allowances","R6301"
"Wolverhampton City Council","http://opendatacommunities.org/id/metropolitan-district-council/wolverhampton","718631","Midland Fuel Oil Supplies Ltd","620133","469.22","Heating Oil","190463754","30/05/2018","Corporate Asset Management","Central Utilities to Recharge","R2102"
"Wolverhampton City Council","http://opendatacommunities.org/id/metropolitan-district-council/wolverhampton","718631","Midland Fuel Oil Supplies Ltd","618850","644.40","Heating Oil","190454021","04/05/2018","Corporate Asset Management","Central Utilities to Recharge","R2102"
"Wolverhampton City Council","http://opendatacommunities.org/id/metropolitan-district-council/wolverhampton","718631","Midland Fuel Oil Supplies Ltd","619626","714.50","Heating Oil","190454022","04/05/2018","Corporate Asset Management","Central Utilities to Recharge","R2102"
"Wolverhampton City Council","http://opendatacommunities.org/id/metropolitan-district-council/wolverhampton","718665","Mr William Douglas-Jones","17594113/04/18","4,700.00","Services - Professional Fees","130213443","09/05/2018","Public Protection","EHTS Operational Costs","R4400"
"Wolverhampton City Council","http://opendatacommunities.org/id/metropolitan-district-council/wolverhampton","718677","NJW Limited","4192","30,000.00","Computing - Purchase of Software","130217315","30/05/2018","Corporate Asset Management","Assets Service Transformation Programme","R4531"
"Wolverhampton City Council","http://opendatacommunities.org/id/metropolitan-district-council/wolverhampton","718702","The National Teaching and Advisory Service","9828549","762.00","TPP - Alternative Provision of Education","130214676","02/05/2018","Special Educational Needs","Post 16 SEN Provision","R5037"
"Wolverhampton City Council","http://opendatacommunities.org/id/metropolitan-district-council/wolverhampton","718702","The National Teaching and Advisory Service","9829011","1,133.00","TPP - Alternative Provision of Education","130214677","02/05/2018","Special Educational Needs","Post 16 SEN Provision","R5037"
"Wolverhampton City Council","http://opendatacommunities.org/id/metropolitan-district-council/wolverhampton","718702","The National Teaching and Advisory Service","9825733 - correction","-953.50","TPP - Alternative Provision of Education","130205480","02/05/2018","Special Educational Needs","Post 16 SEN Provision","R5037"
"Wolverhampton City Council","http://opendatacommunities.org/id/metropolitan-district-council/wolverhampton","718702","The National Teaching and Advisory Service","9828110","1,016.00","TPP - Alternative Provision of Education","130214675","02/05/2018","Special Educational Needs","Post 16 SEN Provision","R5037"
"Wolverhampton City Council","http://opendatacommunities.org/id/metropolitan-district-council/wolverhampton","718702","The National Teaching and Advisory Service","9827680","762.00","TPP - Alternative Provision of Education","130214961","02/05/2018","Special Educational Needs","Post 16 SEN Provision","R5037"
"Wolverhampton City Council","http://opendatacommunities.org/id/metropolitan-district-council/wolverhampton","718758","Heantun Childcare Bushbury Neighbhd Nurs","P398182 Correction","-570.00","TPP - Private Nursery Education Funding","130217785","30/05/2018","Child Protection","CIN/CP Social Work Unit - Area 4","R5035"
"Wolverhampton City Council","http://opendatacommunities.org/id/metropolitan-district-council/wolverhampton","718758","Heantun Childcare Bushbury Neighbhd Nurs","P398182","570.00","TPP - Private Nursery Education Funding","130179308","30/05/2018","Child Protection","CIN/CP Social Work Unit - Area 4","R5035"
"Wolverhampton City Council","http://opendatacommunities.org/id/metropolitan-district-council/wolverhampton","718758","Heantun Childcare Bushbury Neighbhd Nurs","P17289420180504","606.00","Client Allowances","190454805","09/05/2018","Looked After Children","Looked After Team 2","R6301"
"Wolverhampton City Council","http://opendatacommunities.org/id/metropolitan-district-council/wolverhampton","718766","X-ray Touring LLP","OJK 076/2018","3,000.00","Services - Professional Fees","130216312","16/05/2018","Public Service Reform","Civic Events","R4400"
"Wolverhampton City Council","http://opendatacommunities.org/id/metropolitan-district-council/wolverhampton","718805","Count-Up Limited","29589","182.95","Stationery","130215459","30/05/2018","Customer Services","City Direct","R4308"
"Wolverhampton City Council","http://opendatacommunities.org/id/metropolitan-district-council/wolverhampton","718837","East Park Academy","East Park Academy Early Years Payment Spring Term Final 1718","25,583.50","Grant Payments","190458598","18/05/2018","Schools","Academy Early years","R4700"
"Wolverhampton City Council","http://opendatacommunities.org/id/metropolitan-district-council/wolverhampton","718838","Manor Multi Academy Trust T/A Hill Avenue Academy","Hill Avenue Academy Early Years Payment Spring Term Final 1718","8,663.83","Grant Payments","190458599","18/05/2018","Schools","Academy Early years","R4700"
"Wolverhampton City Council","http://opendatacommunities.org/id/metropolitan-district-council/wolverhampton","718894","Sam Mace","27032075","100.00","Services - Professional Fees","130214062","16/05/2018","Visitor Economy","Education And Access","R4400"
"Wolverhampton City Council","http://opendatacommunities.org/id/metropolitan-district-council/wolverhampton","718894","Sam Mace","27032083","75.00","Services - Professional Fees","130214063","16/05/2018","Visitor Economy","Education And Access","R4400"
"Wolverhampton City Council","http://opendatacommunities.org/id/metropolitan-district-council/wolverhampton","718901","iGene London Ltd","IGE/0378","1,500.00","Services - Professional Fees","130215460","30/05/2018","Public Service Reform","Coroners Service","R4400"
"Wolverhampton City Council","http://opendatacommunities.org/id/metropolitan-district-council/wolverhampton","718901","iGene London Ltd","IGE/0368","1,650.00","Services - Professional Fees","130212884","23/05/2018","Public Service Reform","Coroners Service","R4400"
"Wolverhampton City Council","http://opendatacommunities.org/id/metropolitan-district-council/wolverhampton","718950","Cygnet (NW) LTD","SHF0045743","1,184.00","TPP - Alternative Provision of Education","130216769","23/05/2018","Special Educational Needs","SEN Education OOC","R5037"
"Wolverhampton City Council","http://opendatacommunities.org/id/metropolitan-district-council/wolverhampton","718950","Cygnet (NW) LTD","SHF0049262","1,208.00","TPP - Alternative Provision of Education","130217402","25/05/2018","Special Educational Needs","SEN Education OOC","R5037"
"Wolverhampton City Council","http://opendatacommunities.org/id/metropolitan-district-council/wolverhampton","718956","Sandhu News","WRNEWS046","75.10","Books","130213444","09/05/2018","Strategic Organisation Development","Whitmore Reans Library","R4309"
"Wolverhampton City Council","http://opendatacommunities.org/id/metropolitan-district-council/wolverhampton","718991","Mind Space Mediation CIC","20180425-01","350.00","Training Expenses","130214554","23/05/2018","Headstart","Headstart Hubs","R1650"
"Wolverhampton City Council","http://opendatacommunities.org/id/metropolitan-district-council/wolverhampton","719024","Shaylor Group Plc","00012108","102,762.77","Construction and Conversion","130215763","11/05/2018","-","Black Country Growth Deal � Cultural Programme","C1100"
"Wolverhampton City Council","http://opendatacommunities.org/id/metropolitan-district-council/wolverhampton","719045","Edward the Elder Primary School","Edward the Elder Acadeny Early Years Payment Spring Term Final 1718","12,125.83","Grant Payments","190458601","18/05/2018","Schools","Academy Early years","R4700"
"Wolverhampton City Council","http://opendatacommunities.org/id/metropolitan-district-council/wolverhampton","719056","Innovative Safety Systems","9290","158.50","Equipment - Purchase","190462868","25/05/2018","Fleet Services","Fleet Management","R4000"
"Wolverhampton City Council","http://opendatacommunities.org/id/metropolitan-district-council/wolverhampton","719066","The Framers","265","280.00","Services - Professional Fees","130216041","16/05/2018","Public Service Reform","Mayoral Expenses","R4400"
"Wolverhampton City Council","http://opendatacommunities.org/id/metropolitan-district-council/wolverhampton","719067","Robert Glover","RSGWAG015-1","900.27","Services - Professional Fees","130216042","30/05/2018","Visitor Economy","Technical Support - ACE NPO WAG","R4400"
"Wolverhampton City Council","http://opendatacommunities.org/id/metropolitan-district-council/wolverhampton","719123","The Huntercombe Group","24405200","975.00","TPP - Alternative Provision of Education","130217403","25/05/2018","Special Educational Needs","SEN Education OOC","R5037"
"Wolverhampton City Council","http://opendatacommunities.org/id/metropolitan-district-council/wolverhampton","719177","Transparent Care Limited","P172410 27051820180504","5,299.80","TPP - Residential Care - Long Term","190455014","09/05/2018","Learning Disabilities Care Purchasing","LD Care Purchasing (Spot Placements)","R5400"
"Wolverhampton City Council","http://opendatacommunities.org/id/metropolitan-district-council/wolverhampton","719177","Transparent Care Limited","P172410 27051820180504","5,449.80","TPP - Residential Care - Long Term","190455014","09/05/2018","Learning Disabilities Care Purchasing","LD Care Purchasing (Spot Placements)","R5400"
"Wolverhampton City Council","http://opendatacommunities.org/id/metropolitan-district-council/wolverhampton","719177","Transparent Care Limited","P172410 27051820180504","8,599.80","TPP - Residential Care - Long Term","190455014","09/05/2018","Learning Disabilities Care Purchasing","LD Care Purchasing (Spot Placements)","R5400"
"Wolverhampton City Council","http://opendatacommunities.org/id/metropolitan-district-council/wolverhampton","719197","Fire Protection Association","INV101692","1,460.00","Training Expenses","130213909","16/05/2018","Public Service Reform","Centralised Training","R1650"
"Wolverhampton City Council","http://opendatacommunities.org/id/metropolitan-district-council/wolverhampton","719202","The Bigger Picture Education Service","16084326","678.00","Services - Professional Fees","130214679","23/05/2018","Looked After Children","Pupil Premium","R4400"
"Wolverhampton City Council","http://opendatacommunities.org/id/metropolitan-district-council/wolverhampton","719208","Bilston Business Improve. District Ltd","INV-0009","2,635.74","TPP - Business Improvement District (BID) Levy","190455105","09/05/2018","Revenues & Benefits","Bilston Business Improvement District","R5152"
"Wolverhampton City Council","http://opendatacommunities.org/id/metropolitan-district-council/wolverhampton","719238","Encyclopaedia Britannica  (UK) Ltd","21965","2,100.00","Computing - Licences","130215327","04/05/2018","Looked After Children","Pupil Premium","R4535"
"Wolverhampton City Council","http://opendatacommunities.org/id/metropolitan-district-council/wolverhampton","719239","Cartello Ambulance","031618","117.50","Client Transport","130214064","11/05/2018","Adults Assessment & Care Management West","Adult Services � West","R3042"
"Wolverhampton City Council","http://opendatacommunities.org/id/metropolitan-district-council/wolverhampton","719239","Cartello Ambulance","031658","141.00","Client Transport","130216285","25/05/2018","Adults Assessment & Care Management West","Adult Services � West","R3042"
"Wolverhampton City Council","http://opendatacommunities.org/id/metropolitan-district-council/wolverhampton","719244","RISC Associates Limited","488","550.00","Training Expenses","130212704","09/05/2018","Facilities Management","Civic Centre","R1650"
"Wolverhampton City Council","http://opendatacommunities.org/id/metropolitan-district-council/wolverhampton","719282","Barnborough Limited","604547","22.50","Equipment - Purchase","130213450","11/05/2018","Cleaning","Cleaning of Buildings - General","R4000"
"Wolverhampton City Council","http://opendatacommunities.org/id/metropolitan-district-council/wolverhampton","719282","Barnborough Limited","604435","287.43","Equipment - Purchase","130212325","02/05/2018","Cleaning","Cleaning of Buildings - General","R4000"
"Wolverhampton City Council","http://opendatacommunities.org/id/metropolitan-district-council/wolverhampton","719292","Bushbury Lane Academy (Oxley Primary)","Bushbury Lane Academy Early Years Payment Spring Term Final 1718","5,142.17","Grant Payments","190458600","18/05/2018","Schools","Academy Early years","R4700"
"Wolverhampton City Council","http://opendatacommunities.org/id/metropolitan-district-council/wolverhampton","719382","Wiltshire Farm Foods (W-ton)","F096-PSI082310","206.98","Provisions (Not for resale)","130212886","02/05/2018","Learning Disability Provider","Duke Street Bungalows","R4101"
"Wolverhampton City Council","http://opendatacommunities.org/id/metropolitan-district-council/wolverhampton","719382","Wiltshire Farm Foods (W-ton)","F096-PSI083138","206.26","Provisions (Not for resale)","130214202","16/05/2018","Learning Disability Provider","Duke Street Bungalows","R4101"
"Wolverhampton City Council","http://opendatacommunities.org/id/metropolitan-district-council/wolverhampton","719382","Wiltshire Farm Foods (W-ton)","F096-PSI084061","229.18","Provisions (Not for resale)","130215630","30/05/2018","Learning Disability Provider","Duke Street Bungalows","R4101"
"Wolverhampton City Council","http://opendatacommunities.org/id/metropolitan-district-council/wolverhampton","719382","Wiltshire Farm Foods (W-ton)","F096-PSI083625","206.26","Provisions (Not for resale)","130214680","23/05/2018","Learning Disability Provider","Duke Street Bungalows","R4101"
"Wolverhampton City Council","http://opendatacommunities.org/id/metropolitan-district-council/wolverhampton","719382","Wiltshire Farm Foods (W-ton)","F096-PSI082759","206.98","Provisions (Not for resale)","130213628","09/05/2018","Learning Disability Provider","Duke Street Bungalows","R4101"
"Wolverhampton City Council","http://opendatacommunities.org/id/metropolitan-district-council/wolverhampton","719389","Pervasive Networks Limited","6164000972","1,600.00","Plant, Equipment, Machinery & Computer Hardware","130195070","02/05/2018","-","ICT General Programme","C3000"
"Wolverhampton City Council","http://opendatacommunities.org/id/metropolitan-district-council/wolverhampton","719389","Pervasive Networks Limited","6164001214","800.00","Plant, Equipment, Machinery & Computer Hardware","130208272","02/05/2018","-","ICT General Programme","C3000"
"Wolverhampton City Council","http://opendatacommunities.org/id/metropolitan-district-council/wolverhampton","719408","Phoenix Academy","27SV19","16,896.00","TPP - Alternative Provision of Education","130216596","25/05/2018","Special Educational Needs","SEN Education OOC","R5037"
"Wolverhampton City Council","http://opendatacommunities.org/id/metropolitan-district-council/wolverhampton","719408","Phoenix Academy","27SV28","30,976.00","TPP - Alternative Provision of Education","130215879","16/05/2018","Special Educational Needs","SEN Education OOC","R5037"
"Wolverhampton City Council","http://opendatacommunities.org/id/metropolitan-district-council/wolverhampton","719428","S H Training","SH18/1904","395.00","Training Expenses","130214948","25/05/2018","Public Service Reform","Centralised Training","R1650"
"Wolverhampton City Council","http://opendatacommunities.org/id/metropolitan-district-council/wolverhampton","719429","Jasvinder Hewitt","JH200318/S2/SP","3,649.90","Services - Professional Fees","130214555","02/05/2018","Service Director Children & Young People","Children & Young People Support Costs","R4400"
"Wolverhampton City Council","http://opendatacommunities.org/id/metropolitan-district-council/wolverhampton","719430","Lisa Elkington-Bourne","CWC-05-17-18","2,038.50","Services - Professional Fees","130214883","02/05/2018","Service Director Children & Young People","Children & Young People Support Costs","R4400"
"Wolverhampton City Council","http://opendatacommunities.org/id/metropolitan-district-council/wolverhampton","719449","Mentoring West Midlands CIC","0545","360.00","Services - Professional Fees","130213629","16/05/2018","Early Intervention","EIP Locality 1 - Eastfields","R4400"
"Wolverhampton City Council","http://opendatacommunities.org/id/metropolitan-district-council/wolverhampton","719462","Tividale Hall Primary School","P17462020180529","600.00","Grant Payments to Individuals","190463756","30/05/2018","Looked After Children","LAC Education Team (LACE)","R6402"
"Wolverhampton City Council","http://opendatacommunities.org/id/metropolitan-district-council/wolverhampton","719474","Helen Gamble","116","600.00","Training Expenses","130214884","02/05/2018","Looked After Children","Fostering Team & Allowances","R1650"
"Wolverhampton City Council","http://opendatacommunities.org/id/metropolitan-district-council/wolverhampton","719516","Starfish Health & Wellbeing CIC","SF/WCC-013","8,916.66","TPP - Social Care Support Services","130215328","30/05/2018","Strategic Commissioning","Commissioning Mental Health","R5501"
"Wolverhampton City Council","http://opendatacommunities.org/id/metropolitan-district-council/wolverhampton","719518","Chiel Construction Ltd","4167","13,305.76","Construction and Conversion","130216145","23/05/2018","-","Co-Location Programme","C1100"
"Wolverhampton City Council","http://opendatacommunities.org/id/metropolitan-district-council/wolverhampton","719521","Moonstone Day Care Ltd","CITYOFWOLVERHAMPTONCOUNCIL002","90.00","TPP - Child Care provided for client","130214203","16/05/2018","Adult Education","Discretionary Fund","R5034"
"Wolverhampton City Council","http://opendatacommunities.org/id/metropolitan-district-council/wolverhampton","719527","Water Plus","01311076","19,885.07","Water Charges","190461721","23/05/2018","Corporate Asset Management","Central Utilities to Recharge","R2400"
"Wolverhampton City Council","http://opendatacommunities.org/id/metropolitan-district-council/wolverhampton","719527","Water Plus","01270061","772.09","Water Charges","190461722","23/05/2018","Corporate Asset Management","Central Utilities to Recharge","R2400"
"Wolverhampton City Council","http://opendatacommunities.org/id/metropolitan-district-council/wolverhampton","719527","Water Plus","01311068","51,919.25","Water Charges","190461720","23/05/2018","Corporate Asset Management","Central Utilities to Recharge","R2400"
"Wolverhampton City Council","http://opendatacommunities.org/id/metropolitan-district-council/wolverhampton","719529","Dudley Advocacy","06/18","1,785.00","TPP - Social Care Support Services","130214066","16/05/2018","Safeguarding","MCA General","R5501"
"Wolverhampton City Council","http://opendatacommunities.org/id/metropolitan-district-council/wolverhampton","719529","Dudley Advocacy","05/18","1,296.00","TPP - Social Care Support Services","130212328","16/05/2018","Safeguarding","MCA General","R5501"
"Wolverhampton City Council","http://opendatacommunities.org/id/metropolitan-district-council/wolverhampton","719543","ION Projects Limited","523","349,679.78","Construction and Conversion","130215461","09/05/2018","-","GF - Interchange - Ph2 Train Station/MSCP/Metro Extension","C1100"
"Wolverhampton City Council","http://opendatacommunities.org/id/metropolitan-district-council/wolverhampton","719543","ION Projects Limited","525","8.75","Construction and Conversion","130215764","11/05/2018","-","GF - Interchange - Ph2 Train Station/MSCP/Metro Extension","C1100"
"Wolverhampton City Council","http://opendatacommunities.org/id/metropolitan-district-council/wolverhampton","719543","ION Projects Limited","525","164,219.37","Construction and Conversion","130215764","11/05/2018","-","GF - Interchange - Ph2 Train Station/MSCP/Metro Extension","C1100"
"Wolverhampton City Council","http://opendatacommunities.org/id/metropolitan-district-council/wolverhampton","719543","ION Projects Limited","525","6.18","Construction and Conversion","130215764","11/05/2018","-","GF - Interchange - Ph2 Train Station/MSCP/Metro Extension","C1100"
"Wolverhampton City Council","http://opendatacommunities.org/id/metropolitan-district-council/wolverhampton","719556","Care and Independence Ltd","0000013222","170.00","Equipment - Purchase","130214681","23/05/2018","Independent Living Service","Independent Living Service","R4000"
"Wolverhampton City Council","http://opendatacommunities.org/id/metropolitan-district-council/wolverhampton","719556","Care and Independence Ltd","0000013222","12.50","Equipment - Purchase","130214681","23/05/2018","Independent Living Service","Independent Living Service","R4000"
"Wolverhampton City Council","http://opendatacommunities.org/id/metropolitan-district-council/wolverhampton","719556","Care and Independence Ltd","0000011292","440.00","Equipment - Purchase","130217318","25/05/2018","Independent Living Service","Independent Living Service","R4000"
"Wolverhampton City Council","http://opendatacommunities.org/id/metropolitan-district-council/wolverhampton","719556","Care and Independence Ltd","0000003931","209.50","Equipment - Purchase","130217317","25/05/2018","Independent Living Service","Independent Living Service","R4000"
"Wolverhampton City Council","http://opendatacommunities.org/id/metropolitan-district-council/wolverhampton","719556","Care and Independence Ltd","0000013615","149.00","Equipment - Purchase","130215631","30/05/2018","Independent Living Service","Independent Living Service","R4000"
"Wolverhampton City Council","http://opendatacommunities.org/id/metropolitan-district-council/wolverhampton","719556","Care and Independence Ltd","0000013615","12.50","Equipment - Purchase","130215631","30/05/2018","Independent Living Service","Independent Living Service","R4000"
"Wolverhampton City Council","http://opendatacommunities.org/id/metropolitan-district-council/wolverhampton","719556","Care and Independence Ltd","0000011707","1,516.00","Equipment - Purchase","130216146","25/05/2018","Independent Living Service","Independent Living Service","R4000"
"Wolverhampton City Council","http://opendatacommunities.org/id/metropolitan-district-council/wolverhampton","719556","Care and Independence Ltd","0000011707","45.00","Equipment - Purchase","130216146","25/05/2018","Independent Living Service","Independent Living Service","R4000"
"Wolverhampton City Council","http://opendatacommunities.org/id/metropolitan-district-council/wolverhampton","719559","Good Shepherd Ministry (New Contract)","0013","4,450.83","Grant Payments","190455072","09/05/2018","Housing Revenue Account","Single non statutory homelessness","R4700"
"Wolverhampton City Council","http://opendatacommunities.org/id/metropolitan-district-council/wolverhampton","719559","Good Shepherd Ministry (New Contract)","11","3,729.75","TPP - Social Care Support Services","130215166","30/05/2018","Early Intervention","Transformation Challenge Award","R5501"
"Wolverhampton City Council","http://opendatacommunities.org/id/metropolitan-district-council/wolverhampton","719562","Ashcroft Hollow Nursing Home","P172313 27051820180504","2,458.16","TPP - Nursing Care - Long Term","190455015","09/05/2018","Older People Care Purchasing","OP Care Purchasing (Spot Placements)","R5410"
"Wolverhampton City Council","http://opendatacommunities.org/id/metropolitan-district-council/wolverhampton","719568","Dolphin Stairlifts (Central) Ltd","16/0064/SAG","5,450.00","Grants paid out to other organisations","190452561","02/05/2018","-","Disabled Facilities Grants","C5011"
"Wolverhampton City Council","http://opendatacommunities.org/id/metropolitan-district-council/wolverhampton","719583","Ursula Wastall","04","600.00","Training Expenses","130216600","18/05/2018","Looked After Children","Fostering Team & Allowances","R1650"
"Wolverhampton City Council","http://opendatacommunities.org/id/metropolitan-district-council/wolverhampton","719584","Derbyshire Light Medical","483","360.00","Medical Fees","130217004","30/05/2018","Licensing","Licensing - Private Hire Vehicles","R1400"
"Wolverhampton City Council","http://opendatacommunities.org/id/metropolitan-district-council/wolverhampton","719584","Derbyshire Light Medical","478","360.00","Medical Fees","130217003","25/05/2018","Licensing","Licensing - Private Hire Vehicles","R1400"
"Wolverhampton City Council","http://opendatacommunities.org/id/metropolitan-district-council/wolverhampton","719584","Derbyshire Light Medical","467","720.00","Medical Fees","130213034","02/05/2018","Licensing","Licensing - Private Hire Vehicles","R1400"
"Wolverhampton City Council","http://opendatacommunities.org/id/metropolitan-district-council/wolverhampton","719668","St Stephens C Of E Primary","St Stephen�s Academy Early Years Payment Spring Final 1718","14,687.50","Grant Payments","190458603","18/05/2018","Schools","Academy Early years","R4700"
"Wolverhampton City Council","http://opendatacommunities.org/id/metropolitan-district-council/wolverhampton","719712","All Saints CofE Primary School","P17289120180504","600.00","Grant Payments to Individuals","190454802","09/05/2018","Looked After Children","LAC Education Team (LACE)","R6402"
"Wolverhampton City Council","http://opendatacommunities.org/id/metropolitan-district-council/wolverhampton","719751","Green Park Interim & Executive Limited","43663","18,000.00","Agency Staff","130214949","25/05/2018","Waste and Recycling Service","Waste Collection and Recycling Service - General","R1100"
"Wolverhampton City Council","http://opendatacommunities.org/id/metropolitan-district-council/wolverhampton","719751","Green Park Interim & Executive Limited","43352","18,900.00","Agency Staff","130211919","02/05/2018","Waste and Recycling Service","Waste Collection and Recycling Service - General","R1100"
"Wolverhampton City Council","http://opendatacommunities.org/id/metropolitan-district-council/wolverhampton","719755","Goodchilds Estate Agents (W�ton) Ltd","08","790.00","No Recourse to Public Funds","130213630","16/05/2018","Child Protection","CIN/CP Social Work Unit - Area 6","R6314"
"Wolverhampton City Council","http://opendatacommunities.org/id/metropolitan-district-council/wolverhampton","719767","FirstAid4Less","1695918","62.40","Equipment - Purchase","130213631","09/05/2018","Special Educational Needs","Special - Transport","R4000"
"Wolverhampton City Council","http://opendatacommunities.org/id/metropolitan-district-council/wolverhampton","719767","FirstAid4Less","1690422","37.60","Equipment - Purchase","130212887","02/05/2018","Special Educational Needs","Special - Transport","R4000"
"Wolverhampton City Council","http://opendatacommunities.org/id/metropolitan-district-council/wolverhampton","719777","Spaldings Limited","SI-2297085","104.00","Equipment - Purchase","190455317","09/05/2018","Fleet Services","Fleet Management","R4000"
"Wolverhampton City Council","http://opendatacommunities.org/id/metropolitan-district-council/wolverhampton","719803","Tudor Grange Academy Worcester","P17462020180529","600.00","Grant Payments to Individuals","190463756","30/05/2018","Looked After Children","LAC Education Team (LACE)","R6402"
"Wolverhampton City Council","http://opendatacommunities.org/id/metropolitan-district-council/wolverhampton","719837","Arvato Limited","95506849","300.00","Training Expenses","130215765","30/05/2018","Public Service Reform","Workforce Development","R1650"
"Wolverhampton City Council","http://opendatacommunities.org/id/metropolitan-district-council/wolverhampton","719841","Osborne Richardson Limited","214891","366.00","Services - Professional Fees","130213036","09/05/2018","Public Protection","EHTS Staffing","R4400"
"Wolverhampton City Council","http://opendatacommunities.org/id/metropolitan-district-council/wolverhampton","719841","Osborne Richardson Limited","214698","282.00","Services - Professional Fees","130213035","02/05/2018","Public Protection","EHTS Staffing","R4400"
"Wolverhampton City Council","http://opendatacommunities.org/id/metropolitan-district-council/wolverhampton","719876","Bouygues UK","1726000017","41,554.46","Construction and Conversion","130213037","02/05/2018","-","Tap Works site","C1100"
"Wolverhampton City Council","http://opendatacommunities.org/id/metropolitan-district-council/wolverhampton","719878","Ryal Media Group Ltd","1460","186.00","Services - Professional Fees","130215330","16/05/2018","School Planning & Resources","Pupil & Student Support","R4400"
"Wolverhampton City Council","http://opendatacommunities.org/id/metropolitan-district-council/wolverhampton","719919","Action Assist Ltd","102861","220.00","Equipment - Purchase","130215483","16/05/2018","Independent Living Service","Independent Living Service","R4000"
"Wolverhampton City Council","http://opendatacommunities.org/id/metropolitan-district-council/wolverhampton","719919","Action Assist Ltd","102861","12.50","Equipment - Purchase","130215483","16/05/2018","Independent Living Service","Independent Living Service","R4000"
"Wolverhampton City Council","http://opendatacommunities.org/id/metropolitan-district-council/wolverhampton","719947","Street Eats Food","168178","773.52","Provisions (Resale)","130214207","18/05/2018","Catering","Civic Centre Catering","R4102"
"Wolverhampton City Council","http://opendatacommunities.org/id/metropolitan-district-council/wolverhampton","719947","Street Eats Food","168179","78.14","Provisions (Resale)","130214208","18/05/2018","Catering","Civic Centre Catering","R4102"
"Wolverhampton City Council","http://opendatacommunities.org/id/metropolitan-district-council/wolverhampton","719947","Street Eats Food","168181","44.22","Provisions (Resale)","130214363","18/05/2018","Catering","Meals on Wheels","R4102"
"Wolverhampton City Council","http://opendatacommunities.org/id/metropolitan-district-council/wolverhampton","719947","Street Eats Food","168968","74.10","Provisions (Resale)","130214890","25/05/2018","Catering","Civic Centre Catering","R4102"
"Wolverhampton City Council","http://opendatacommunities.org/id/metropolitan-district-council/wolverhampton","719947","Street Eats Food","168884","588.26","Provisions (Resale)","130214888","25/05/2018","Catering","Education Catering - General Overheads","R4102"
"Wolverhampton City Council","http://opendatacommunities.org/id/metropolitan-district-council/wolverhampton","719947","Street Eats Food","167131","159.83","Provisions (Resale)","130215882","11/05/2018","Leisure Services","Bert Williams Leisure Centre Caf�","R4102"
"Wolverhampton City Council","http://opendatacommunities.org/id/metropolitan-district-council/wolverhampton","719947","Street Eats Food","166424","86.69","Provisions (Resale)","130212557","04/05/2018","Leisure Services","WV Active Catering - Central","R4102"
"Wolverhampton City Council","http://opendatacommunities.org/id/metropolitan-district-council/wolverhampton","719947","Street Eats Food","168078","748.47","Provisions (Resale)","130214360","18/05/2018","Catering","Education Catering - General Overheads","R4102"
"Wolverhampton City Council","http://opendatacommunities.org/id/metropolitan-district-council/wolverhampton","719947","Street Eats Food","167944","342.13","Provisions (Resale)","130214205","18/05/2018","Leisure Services","WV Active Catering","R4102"
"Wolverhampton City Council","http://opendatacommunities.org/id/metropolitan-district-council/wolverhampton","719947","Street Eats Food","168180","154.45","Provisions (Resale)","130214362","18/05/2018","Catering","Meals on Wheels","R4102"
"Wolverhampton City Council","http://opendatacommunities.org/id/metropolitan-district-council/wolverhampton","719947","Street Eats Food","168750","81.43","Provisions (Resale)","130214886","25/05/2018","Leisure Services","WV Active Catering - Central","R4102"
"Wolverhampton City Council","http://opendatacommunities.org/id/metropolitan-district-council/wolverhampton","719947","Street Eats Food","168723","506.14","Provisions (Resale)","130214885","25/05/2018","Leisure Services","WV Active Catering","R4102"
"Wolverhampton City Council","http://opendatacommunities.org/id/metropolitan-district-council/wolverhampton","719947","Street Eats Food","167017","54.67","Provisions (Resale)","130213457","11/05/2018","Leisure Services","WV Active Catering - Central","R4102"
"Wolverhampton City Council","http://opendatacommunities.org/id/metropolitan-district-council/wolverhampton","719947","Street Eats Food","166520","168.66","Provisions (Resale)","130212559","04/05/2018","Catering","Meals on Wheels","R4102"
"Wolverhampton City Council","http://opendatacommunities.org/id/metropolitan-district-council/wolverhampton","719947","Street Eats Food","168865","760.87","Provisions (Resale)","130214887","25/05/2018","Catering","Education Catering - General Overheads","R4102"
"Wolverhampton City Council","http://opendatacommunities.org/id/metropolitan-district-council/wolverhampton","719947","Street Eats Food","168971","210.38","Provisions (Resale)","130214893","25/05/2018","Leisure Services","Bert Williams Leisure Centre Caf�","R4102"
"Wolverhampton City Council","http://opendatacommunities.org/id/metropolitan-district-council/wolverhampton","719947","Street Eats Food","168182","246.83","Provisions (Resale)","130214209","18/05/2018","Leisure Services","Bert Williams Leisure Centre Caf�","R4102"
"Wolverhampton City Council","http://opendatacommunities.org/id/metropolitan-district-council/wolverhampton","719947","Street Eats Food","168097","576.91","Provisions (Resale)","130214361","18/05/2018","Catering","Education Catering - General Overheads","R4102"
"Wolverhampton City Council","http://opendatacommunities.org/id/metropolitan-district-council/wolverhampton","719947","Street Eats Food","167004","148.48","Provisions (Resale)","130213456","11/05/2018","Leisure Services","WV Active Catering","R4102"
"Wolverhampton City Council","http://opendatacommunities.org/id/metropolitan-district-council/wolverhampton","719947","Street Eats Food","166413","235.36","Provisions (Resale)","130212556","04/05/2018","Leisure Services","WV Active Catering","R4102"
"Wolverhampton City Council","http://opendatacommunities.org/id/metropolitan-district-council/wolverhampton","719947","Street Eats Food","167968","54.67","Provisions (Resale)","130214206","18/05/2018","Leisure Services","WV Active Catering - Central","R4102"
"Wolverhampton City Council","http://opendatacommunities.org/id/metropolitan-district-council/wolverhampton","719947","Street Eats Food","168028","621.55","Provisions (Resale)","130214359","18/05/2018","Catering","Education Catering - General Overheads","R4102"
"Wolverhampton City Council","http://opendatacommunities.org/id/metropolitan-district-council/wolverhampton","719947","Street Eats Food","168967","773.52","Provisions (Resale)","130214889","25/05/2018","Catering","Civic Centre Catering","R4102"
"Wolverhampton City Council","http://opendatacommunities.org/id/metropolitan-district-council/wolverhampton","719947","Street Eats Food","168969","148.77","Provisions (Resale)","130214891","25/05/2018","Catering","Meals on Wheels","R4102"
"Wolverhampton City Council","http://opendatacommunities.org/id/metropolitan-district-council/wolverhampton","719947","Street Eats Food","168970","52.60","Provisions (Resale)","130214892","25/05/2018","Adult Education","Caf�","R4102"
"Wolverhampton City Council","http://opendatacommunities.org/id/metropolitan-district-council/wolverhampton","719947","Street Eats Food","164192-CORRECTION","179.19","Provisions (Resale)","130213453","02/05/2018","Leisure Services","WV Active Catering - Central","R4102"
"Wolverhampton City Council","http://opendatacommunities.org/id/metropolitan-district-council/wolverhampton","719947","Street Eats Food","165715","102.74","Provisions (Resale)","130215881","11/05/2018","Leisure Services","WV Active Catering","R4102"
"Wolverhampton City Council","http://opendatacommunities.org/id/metropolitan-district-council/wolverhampton","719947","Street Eats Food","165715","275.89","Provisions (Resale)","130215881","11/05/2018","Leisure Services","WV Active Catering","R4102"
"Wolverhampton City Council","http://opendatacommunities.org/id/metropolitan-district-council/wolverhampton","719947","Street Eats Food","165715","338.35","Provisions (Resale)","130215881","11/05/2018","Leisure Services","WV Active Catering","R4102"
"Wolverhampton City Council","http://opendatacommunities.org/id/metropolitan-district-council/wolverhampton","719947","Street Eats Food","166519","507.75","Provisions (Resale)","130212558","04/05/2018","Catering","Civic Centre Catering","R4102"
"Wolverhampton City Council","http://opendatacommunities.org/id/metropolitan-district-council/wolverhampton","719947","Street Eats Food","166521","159.83","Provisions (Resale)","130212560","04/05/2018","Leisure Services","Bert Williams Leisure Centre Caf�","R4102"
"Wolverhampton City Council","http://opendatacommunities.org/id/metropolitan-district-council/wolverhampton","719949","PurePromoter Ltd T/A Pure360","215322","224.00","Marketing \ Non-staff advertising","130212705","30/05/2018","Visitor Economy","Audience Development","R4317"
"Wolverhampton City Council","http://opendatacommunities.org/id/metropolitan-district-council/wolverhampton","719978","Elisabeth Briggs Physiotherapy","0007","400.00","Services - Professional Fees","130214556","23/05/2018","Independent Living Service","Independent Living Service","R4400"
"Wolverhampton City Council","http://opendatacommunities.org/id/metropolitan-district-council/wolverhampton","719978","Elisabeth Briggs Physiotherapy","0008","400.00","Services - Professional Fees","130214682","23/05/2018","Independent Living Service","Independent Living Service","R4400"
"Wolverhampton City Council","http://opendatacommunities.org/id/metropolitan-district-council/wolverhampton","719978","Elisabeth Briggs Physiotherapy","0005","700.00","Services - Professional Fees","130214364","23/05/2018","Independent Living Service","Independent Living Service","R4400"
"Wolverhampton City Council","http://opendatacommunities.org/id/metropolitan-district-council/wolverhampton","719978","Elisabeth Briggs Physiotherapy","0006","700.00","Services - Professional Fees","130214365","23/05/2018","Independent Living Service","Independent Living Service","R4400"
"Wolverhampton City Council","http://opendatacommunities.org/id/metropolitan-district-council/wolverhampton","719998","Perfect Circle JV Ltd","28346341","819.00","Services - Professional Fees","130216387","30/05/2018","Housing Revenue Account","HRA General","R4400"
"Wolverhampton City Council","http://opendatacommunities.org/id/metropolitan-district-council/wolverhampton","719998","Perfect Circle JV Ltd","28345757","12,250.95","Construction and Conversion","130214684","23/05/2018","-","Decent Homes - Stock Improvements","C1100"
"Wolverhampton City Council","http://opendatacommunities.org/id/metropolitan-district-council/wolverhampton","719998","Perfect Circle JV Ltd","28346300","11,517.57","Construction and Conversion","130216602","30/05/2018","-","GF - Leisure Centres Enhancement","C1100"
"Wolverhampton City Council","http://opendatacommunities.org/id/metropolitan-district-council/wolverhampton","719998","Perfect Circle JV Ltd","PC1777","3,450.00","Services - Consultants","130214894","23/05/2018","City Development","Junction 2 Development","R4404"
"Wolverhampton City Council","http://opendatacommunities.org/id/metropolitan-district-council/wolverhampton","719998","Perfect Circle JV Ltd","PC1778","2,760.00","Services - Consultants","130214895","23/05/2018","City Development","Junction 2 Development","R4404"
"Wolverhampton City Council","http://opendatacommunities.org/id/metropolitan-district-council/wolverhampton","719998","Perfect Circle JV Ltd","BMMS0231/002","21,750.00","Construction and Conversion","130215462","25/05/2018","-","Primary Expansion Programme","C1100"
"Wolverhampton City Council","http://opendatacommunities.org/id/metropolitan-district-council/wolverhampton","720008","Humi-Tech Services Ltd","9993","2,205.00","R&M - Departmental planned (internal)","130214950","16/05/2018","Maintenance Programme","Civic Centre Repairs & Maintenance","R2000"
"Wolverhampton City Council","http://opendatacommunities.org/id/metropolitan-district-council/wolverhampton","720011","AMV Couriers LTD","6879","110.00","Comms - Postage","130214557","18/05/2018","ICTS","Document Centre - General","R4503"
"Wolverhampton City Council","http://opendatacommunities.org/id/metropolitan-district-council/wolverhampton","720011","AMV Couriers LTD","6862","70.00","Comms - Postage","130213633","11/05/2018","Legal Services","Legal Services","R4503"
"Wolverhampton City Council","http://opendatacommunities.org/id/metropolitan-district-council/wolverhampton","720011","AMV Couriers LTD","6887","155.00","Comms - Postage","130214366","18/05/2018","Legal Services","Legal Services","R4503"
"Wolverhampton City Council","http://opendatacommunities.org/id/metropolitan-district-council/wolverhampton","720011","AMV Couriers LTD","6908","80.00","Comms - Postage","130214898","25/05/2018","Legal Services","Legal Services","R4503"
"Wolverhampton City Council","http://opendatacommunities.org/id/metropolitan-district-council/wolverhampton","720011","AMV Couriers LTD","6832","55.00","Comms - Postage","130212706","04/05/2018","ICTS","Document Centre - General","R4503"
"Wolverhampton City Council","http://opendatacommunities.org/id/metropolitan-district-council/wolverhampton","720011","AMV Couriers LTD","6907","45.00","Comms - Postage","130214897","25/05/2018","ICTS","Document Centre - General","R4503"
"Wolverhampton City Council","http://opendatacommunities.org/id/metropolitan-district-council/wolverhampton","720011","AMV Couriers LTD","6845","45.00","Comms - Postage","130212707","04/05/2018","Legal Services","Legal Services","R4503"
"Wolverhampton City Council","http://opendatacommunities.org/id/metropolitan-district-council/wolverhampton","720037","Kingsgate Furniture Limited","4003","1,565.00","Furniture","130214070","16/05/2018","Public Service Reform","Mayoral Expenses","R4004"
"Wolverhampton City Council","http://opendatacommunities.org/id/metropolitan-district-council/wolverhampton","720038","Wolverhampton Grammar School","P17289120180504","600.00","Grant Payments to Individuals","190454802","09/05/2018","Looked After Children","LAC Education Team (LACE)","R6402"
"Wolverhampton City Council","http://opendatacommunities.org/id/metropolitan-district-council/wolverhampton","720043","The Minories","P172393 27051820180504","1,999.35","TPP - Nursing Care - Short Term","190455018","09/05/2018","Physical Disabilities Care Purchasing","PD Care Purchasing (Spot Placements)","R5411"
"Wolverhampton City Council","http://opendatacommunities.org/id/metropolitan-district-council/wolverhampton","720045","The Knowledge Academy Ltd","SO1141409","4,050.00","Training Expenses","130200766","02/05/2018","Public Service Reform","Centralised Training","R1650"
"Wolverhampton City Council","http://opendatacommunities.org/id/metropolitan-district-council/wolverhampton","720064","Wealden Rehab Ltd","SAJ/2018/25787","1,972.43","Equipment - Purchase","130217005","25/05/2018","Independent Living Service","Independent Living Service","R4000"
"Wolverhampton City Council","http://opendatacommunities.org/id/metropolitan-district-council/wolverhampton","720120","Granby Nurseries Ltd","P17411820180521","175.00","Client Allowances","190461437","23/05/2018","Looked After Children","Looked After Team 2","R6301"
"Wolverhampton City Council","http://opendatacommunities.org/id/metropolitan-district-council/wolverhampton","720122","GE Capital Equipment Finance Limited","D111363041806","198.90","Equipment - Hire","130214899","16/05/2018","Adult Education","The Maltings","R4001"
"Wolverhampton City Council","http://opendatacommunities.org/id/metropolitan-district-council/wolverhampton","720123","E.Manton Limited","10832","9,651.62","Construction and Conversion","130214900","09/05/2018","-","Co-Location Programme","C1100"
"Wolverhampton City Council","http://opendatacommunities.org/id/metropolitan-district-council/wolverhampton","720147","St Barts CE Multi Acad  (Woodfield Inf)","P17289120180504","600.00","Grant Payments to Individuals","190454802","09/05/2018","Looked After Children","LAC Education Team (LACE)","R6402"
"Wolverhampton City Council","http://opendatacommunities.org/id/metropolitan-district-council/wolverhampton","720147","St Barts CE Multi Acad  (Woodfield Inf)","P17289120180504","600.00","Grant Payments to Individuals","190454802","09/05/2018","Looked After Children","LAC Education Team (LACE)","R6402"
"Wolverhampton City Council","http://opendatacommunities.org/id/metropolitan-district-council/wolverhampton","720147","St Barts CE Multi Acad  (Woodfield Inf)","Woodfield Infant Early Years Payment Spring Term Final 1718","28,729.17","Grant Payments","190458604","18/05/2018","Schools","Academy Early years","R4700"
"Wolverhampton City Council","http://opendatacommunities.org/id/metropolitan-district-council/wolverhampton","720171","Exitus Children�s Care Ltd","P172669 27051820180504","18,380.00","TPP - Residential Care - Long Term","190454791","09/05/2018","Looked After Children","Out of City - Pooled Budget","R5400"
"Wolverhampton City Council","http://opendatacommunities.org/id/metropolitan-district-council/wolverhampton","720176","Rent Connect Properties Ltd","CP-WCC017-01","8,773.00","No Recourse to Public Funds","190455777","11/05/2018","Child Protection","MASH","R6314"
"Wolverhampton City Council","http://opendatacommunities.org/id/metropolitan-district-council/wolverhampton","720176","Rent Connect Properties Ltd","RC-WCC004","2,790.00","No Recourse to Public Funds","190455768","11/05/2018","Child Protection","MASH","R6314"
"Wolverhampton City Council","http://opendatacommunities.org/id/metropolitan-district-council/wolverhampton","720176","Rent Connect Properties Ltd","RC-WCC006","2,820.00","No Recourse to Public Funds","190455769","11/05/2018","Child Protection","MASH","R6314"
"Wolverhampton City Council","http://opendatacommunities.org/id/metropolitan-district-council/wolverhampton","720176","Rent Connect Properties Ltd","RC-WCC010","3,600.00","No Recourse to Public Funds","190455771","11/05/2018","Child Protection","MASH","R6314"
"Wolverhampton City Council","http://opendatacommunities.org/id/metropolitan-district-council/wolverhampton","720176","Rent Connect Properties Ltd","RC-WCC013","1,444.00","No Recourse to Public Funds","190455773","11/05/2018","Child Protection","MASH","R6314"
"Wolverhampton City Council","http://opendatacommunities.org/id/metropolitan-district-council/wolverhampton","720176","Rent Connect Properties Ltd","RC-WCC002","90.00","No Recourse to Public Funds","190455767","11/05/2018","Child Protection","MASH","R6314"
"Wolverhampton City Council","http://opendatacommunities.org/id/metropolitan-district-council/wolverhampton","720176","Rent Connect Properties Ltd","RC-WCC008","3,740.00","No Recourse to Public Funds","190455770","11/05/2018","Child Protection","MASH","R6314"
"Wolverhampton City Council","http://opendatacommunities.org/id/metropolitan-district-council/wolverhampton","720176","Rent Connect Properties Ltd","RC-WCC016-01","6,884.00","No Recourse to Public Funds","190455776","11/05/2018","Child Protection","MASH","R6314"
"Wolverhampton City Council","http://opendatacommunities.org/id/metropolitan-district-council/wolverhampton","720176","Rent Connect Properties Ltd","RC-WCC015-01","6,723.00","No Recourse to Public Funds","190455775","11/05/2018","Child Protection","MASH","R6314"
"Wolverhampton City Council","http://opendatacommunities.org/id/metropolitan-district-council/wolverhampton","720176","Rent Connect Properties Ltd","RC-WCC014","400.00","No Recourse to Public Funds","190455774","11/05/2018","Child Protection","MASH","R6314"
"Wolverhampton City Council","http://opendatacommunities.org/id/metropolitan-district-council/wolverhampton","720176","Rent Connect Properties Ltd","RC-WCC012","3,720.00","No Recourse to Public Funds","190455772","11/05/2018","Child Protection","MASH","R6314"
"Wolverhampton City Council","http://opendatacommunities.org/id/metropolitan-district-council/wolverhampton","720199","Mr Lee Parkhill - 7BR","12194275","5,225.00","Services - Professional Fees","130212561","02/05/2018","Legal Services","Centralised External Legal Costs","R4400"
"Wolverhampton City Council","http://opendatacommunities.org/id/metropolitan-district-council/wolverhampton","720226","SW Retail","48596","67.50","Equipment - Purchase","130217412","30/05/2018","Independent Living Service","Independent Living Service","R4000"
"Wolverhampton City Council","http://opendatacommunities.org/id/metropolitan-district-council/wolverhampton","720232","Ormiston NEW School","P17289120180504","600.00","Grant Payments to Individuals","190454802","09/05/2018","Looked After Children","LAC Education Team (LACE)","R6402"
"Wolverhampton City Council","http://opendatacommunities.org/id/metropolitan-district-council/wolverhampton","720232","Ormiston NEW School","P17289120180504","600.00","Grant Payments to Individuals","190454802","09/05/2018","Looked After Children","LAC Education Team (LACE)","R6402"
"Wolverhampton City Council","http://opendatacommunities.org/id/metropolitan-district-council/wolverhampton","720232","Ormiston NEW School","P17289120180504","600.00","Grant Payments to Individuals","190454802","09/05/2018","Looked After Children","LAC Education Team (LACE)","R6402"
"Wolverhampton City Council","http://opendatacommunities.org/id/metropolitan-district-council/wolverhampton","720232","Ormiston NEW School","P17289120180504","600.00","Grant Payments to Individuals","190454802","09/05/2018","Looked After Children","LAC Education Team (LACE)","R6402"
"Wolverhampton City Council","http://opendatacommunities.org/id/metropolitan-district-council/wolverhampton","720247","Pitney Bowes Limited","29016025","6,800.00","Equipment - Purchase","130215644","23/05/2018","ICTS","Document Centre - General","R4000"
"Wolverhampton City Council","http://opendatacommunities.org/id/metropolitan-district-council/wolverhampton","720249","St Phillips Barristers","619324","650.00","Services - Professional Fees","130214367","23/05/2018","Public Protection","EHTS Operational Costs","R4400"
"Wolverhampton City Council","http://opendatacommunities.org/id/metropolitan-district-council/wolverhampton","720269","All Saints Church of England School","P17289120180504","600.00","Grant Payments to Individuals","190454802","09/05/2018","Looked After Children","LAC Education Team (LACE)","R6402"
"Wolverhampton City Council","http://opendatacommunities.org/id/metropolitan-district-council/wolverhampton","720273","Veronica House Ltd","P172448 27051820180504","3,932.60","TPP - Nursing Care - Long Term","190455022","09/05/2018","Older People Care Purchasing","OP Care Purchasing (Spot Placements)","R5410"
"Wolverhampton City Council","http://opendatacommunities.org/id/metropolitan-district-council/wolverhampton","720276","Drive DeVilbiss Sidhil Limited","656783","426.96","Equipment - R & M","130212563","02/05/2018","Independent Living Service","Independent Living Service","R4003"
"Wolverhampton City Council","http://opendatacommunities.org/id/metropolitan-district-council/wolverhampton","720276","Drive DeVilbiss Sidhil Limited","656787","490.73","Equipment - R & M","130212564","02/05/2018","Independent Living Service","Independent Living Service","R4003"
"Wolverhampton City Council","http://opendatacommunities.org/id/metropolitan-district-council/wolverhampton","720276","Drive DeVilbiss Sidhil Limited","656775","204.38","Equipment - R & M","130212562","02/05/2018","Independent Living Service","Independent Living Service","R4003"
"Wolverhampton City Council","http://opendatacommunities.org/id/metropolitan-district-council/wolverhampton","720282","Selecta UK Ltd (Was Pelican Rouge)","180084165","2,875.00","Equipment - Purchase","130212708","02/05/2018","Corporate Asset Management","Future Space Decant Area","R4000"
"Wolverhampton City Council","http://opendatacommunities.org/id/metropolitan-district-council/wolverhampton","720282","Selecta UK Ltd (Was Pelican Rouge)","180084373","1,513.04","Provisions (Resale)","130212709","02/05/2018","Catering","Civic Centre Catering","R4102"
"Wolverhampton City Council","http://opendatacommunities.org/id/metropolitan-district-council/wolverhampton","720302","Barrie Bookkeeping & Payroll Solutions Ltd","17578","7,203.95","Direct payments - Long Term support","130212710","11/05/2018","Strategic Commissioning","Head of Strategic Commissioning","R6302"
"Wolverhampton City Council","http://opendatacommunities.org/id/metropolitan-district-council/wolverhampton","720303","Acer Marketing Communications Ltd","1662","150.00","Marketing \ Non-staff advertising","130216391","18/05/2018","City Development","Blue Network (ERDF)","R4317"
"Wolverhampton City Council","http://opendatacommunities.org/id/metropolitan-district-council/wolverhampton","720303","Acer Marketing Communications Ltd","1658","150.00","Marketing \ Non-staff advertising","130212711","25/05/2018","City Development","Blue Network (ERDF)","R4317"
"Wolverhampton City Council","http://opendatacommunities.org/id/metropolitan-district-council/wolverhampton","720323","Urbis-Schreder Limited","INV047248","21,350.02","Materials","130215167","16/05/2018","Street Lighting","Street Lighting Maintenance","R4007"
"Wolverhampton City Council","http://opendatacommunities.org/id/metropolitan-district-council/wolverhampton","720398","Alfred Squire Road Health Centre","5751/7920/JM    JS","20.00","Medical Fees","190462563","25/05/2018","Learning Disability Provider","Duke Street Bungalows","R1400"
"Wolverhampton City Council","http://opendatacommunities.org/id/metropolitan-district-council/wolverhampton","720423","Lextox","80869","277.25","Services - Professional Fees","130215646","25/05/2018","Legal Services","Centralised External Legal Costs","R4400"
"Wolverhampton City Council","http://opendatacommunities.org/id/metropolitan-district-council/wolverhampton","720460","NKB and Associates (UK) Ltd","9007","1,240.00","TPP - Accommodation","130208458","09/05/2018","Child Protection","CIN/CP Social Work Unit - Area 2","R5603"
"Wolverhampton City Council","http://opendatacommunities.org/id/metropolitan-district-council/wolverhampton","720463","Jolly Jesters Inflatables International","1953","300.00","Equipment - Purchase","130217006","23/05/2018","Markets","Wolverhampton Indoor and Open Market","R4000"
"Wolverhampton City Council","http://opendatacommunities.org/id/metropolitan-district-council/wolverhampton","720463","Jolly Jesters Inflatables International","JJ001235","1,000.00","Equipment - Purchase","130217007","23/05/2018","Markets","Wolverhampton Indoor and Open Market","R4000"
"Wolverhampton City Council","http://opendatacommunities.org/id/metropolitan-district-council/wolverhampton","720476","Paragon Asra Housing","2000472","755.78","Services - Translation fees","130216394","18/05/2018","Independent Living Service","Telecare","R4406"
"Wolverhampton City Council","http://opendatacommunities.org/id/metropolitan-district-council/wolverhampton","720476","Paragon Asra Housing","2000471","755.78","Services - Translation fees","130216393","18/05/2018","Independent Living Service","Telecare","R4406"
"Wolverhampton City Council","http://opendatacommunities.org/id/metropolitan-district-council/wolverhampton","720476","Paragon Asra Housing","2000470","748.73","Services - Translation fees","130216392","18/05/2018","Independent Living Service","Telecare","R4406"
"Wolverhampton City Council","http://opendatacommunities.org/id/metropolitan-district-council/wolverhampton","720478","Performance Health","INGB073564","1,359.80","Equipment - Purchase","130215331","30/05/2018","Independent Living Service","Independent Living Service","R4000"
"Wolverhampton City Council","http://opendatacommunities.org/id/metropolitan-district-council/wolverhampton","720482","Woodfield Junior School","P17289120180504","600.00","Grant Payments to Individuals","190454802","09/05/2018","Looked After Children","LAC Education Team (LACE)","R6402"
"Wolverhampton City Council","http://opendatacommunities.org/id/metropolitan-district-council/wolverhampton","720484","Amey OW Ltd","90678258","1,200.00","Construction and Conversion","130215767","23/05/2018","-","GF - Accessing Growth Fund","C1100"
"Wolverhampton City Council","http://opendatacommunities.org/id/metropolitan-district-council/wolverhampton","720501","Sven Saunas Ltd","186085","214.00","R&M - Departmental planned (external)","130214368","09/05/2018","Leisure Services","Central Baths","R2001"
"Wolverhampton City Council","http://opendatacommunities.org/id/metropolitan-district-council/wolverhampton","720509","Hawthorn Business Limited","HB000011","3,350.00","Services - Professional Fees","130215468","30/05/2018","Strategic Finance","Strategic Finance","R4400"
"Wolverhampton City Council","http://opendatacommunities.org/id/metropolitan-district-council/wolverhampton","720510","Idverde Ltd","NE706455","3,569.11","External Professional Fees","130216775","23/05/2018","-","Targeted Disposals Programme","C6002"
"Wolverhampton City Council","http://opendatacommunities.org/id/metropolitan-district-council/wolverhampton","720521","Sable Leigh Consultancy","286","7,309.85","External Professional Fees","130215887","25/05/2018","-","GF - Interchange - Ph2 Train Station/MSCP/Metro Extension","C6002"
"Wolverhampton City Council","http://opendatacommunities.org/id/metropolitan-district-council/wolverhampton","720550","Grafityp UK Ltd","392713","1,616.06","Materials","130214903","23/05/2018","ICTS","Document Centre - General","R4007"
"Wolverhampton City Council","http://opendatacommunities.org/id/metropolitan-district-council/wolverhampton","720552","Coghlan Lodges Limited","361320180503","881.40","TPP - Supported Living","190454137","04/05/2018","Mental Health Assesment & Care Management","MH Care Purchasing (Spot Placements)","R5422"
"Wolverhampton City Council","http://opendatacommunities.org/id/metropolitan-district-council/wolverhampton","720552","Coghlan Lodges Limited","362320180515","881.40","TPP - Supported Living","190457998","16/05/2018","Mental Health Assesment & Care Management","MH Care Purchasing (Spot Placements)","R5422"
"Wolverhampton City Council","http://opendatacommunities.org/id/metropolitan-district-council/wolverhampton","720552","Coghlan Lodges Limited","Credit 122 (Blue Bill)","-528.84","TPP - Day Care","130216395","23/05/2018","Older People Care Purchasing","OP Care Purchasing (Spot Placements)","R5430"
"Wolverhampton City Council","http://opendatacommunities.org/id/metropolitan-district-council/wolverhampton","720552","Coghlan Lodges Limited","368820180529","881.40","TPP - Supported Living","190463743","30/05/2018","Mental Health Assesment & Care Management","MH Care Purchasing (Spot Placements)","R5422"
"Wolverhampton City Council","http://opendatacommunities.org/id/metropolitan-district-council/wolverhampton","720552","Coghlan Lodges Limited","362420180521","881.40","TPP - Supported Living","190461414","23/05/2018","Mental Health Assesment & Care Management","MH Care Purchasing (Spot Placements)","R5422"
"Wolverhampton City Council","http://opendatacommunities.org/id/metropolitan-district-council/wolverhampton","720552","Coghlan Lodges Limited","362020180508","881.40","TPP - Supported Living","190455205","09/05/2018","Mental Health Assesment & Care Management","MH Care Purchasing (Spot Placements)","R5422"
"Wolverhampton City Council","http://opendatacommunities.org/id/metropolitan-district-council/wolverhampton","720564","Kier Construction Limited-Central","10071074","42,918.30","Construction and Conversion","130215888","30/05/2018","-","Primary Expansion Programme","C1100"
"Wolverhampton City Council","http://opendatacommunities.org/id/metropolitan-district-council/wolverhampton","720564","Kier Construction Limited-Central","10071077","41,351.14","Construction and Conversion","130215889","30/05/2018","-","Primary Expansion Programme","C1100"
"Wolverhampton City Council","http://opendatacommunities.org/id/metropolitan-district-council/wolverhampton","720568","St Michael�s CofE Primary School","22-1718","4,119.24","TPP - Payments to Local Authorities","130215647","11/05/2018","Special Educational Needs","SEN Education OOC","R5100"
"Wolverhampton City Council","http://opendatacommunities.org/id/metropolitan-district-council/wolverhampton","720582","Hereward College","Academic Year 2017-2018 Summer Term P82225","22,948.11","TPP - Alternative Provision of Education","130216633","18/05/2018","Special Educational Needs","Post 16 SEN Provision","R5037"
"Wolverhampton City Council","http://opendatacommunities.org/id/metropolitan-district-council/wolverhampton","720582","Hereward College","6280","5,956.60","TPP - Alternative Provision of Education","130215168","16/05/2018","Special Educational Needs","Post 16 SEN Provision","R5037"
"Wolverhampton City Council","http://opendatacommunities.org/id/metropolitan-district-council/wolverhampton","720603","Centre for Effective Dispute Resolution","DRS-40241","1,250.00","Services - Professional Fees","130216627","18/05/2018","Waste and Recycling Service","Waste Disposal - General","R4400"
"Wolverhampton City Council","http://opendatacommunities.org/id/metropolitan-district-council/wolverhampton","720604","Staff Direct 4 U","TRAIN:013WOLVES","14,795.00","Training Expenses","130215891","23/05/2018","Skills","IMPACT","R1650"
"Wolverhampton City Council","http://opendatacommunities.org/id/metropolitan-district-council/wolverhampton","720604","Staff Direct 4 U","TRAIN012WOLVES","13,185.00","Training Expenses","130216628","30/05/2018","Skills","IMPACT","R1650"
"Wolverhampton City Council","http://opendatacommunities.org/id/metropolitan-district-council/wolverhampton","720604","Staff Direct 4 U","TRAIN:011WOLVES","9,730.00","Training Expenses","130215890","23/05/2018","Skills","IMPACT","R1650"
"Wolverhampton City Council","http://opendatacommunities.org/id/metropolitan-district-council/wolverhampton","720604","Staff Direct 4 U","TRAIN:014WOLVES","7,360.00","Training Expenses","130215892","30/05/2018","Skills","IMPACT","R1650"
"Wolverhampton City Council","http://opendatacommunities.org/id/metropolitan-district-council/wolverhampton","720611","The Institute of Money Advisers","27418","379.00","Training Expenses","130215893","11/05/2018","Housing Revenue Account","Prevention of Repossession Fund","R1650"
"Wolverhampton City Council","http://opendatacommunities.org/id/metropolitan-district-council/wolverhampton","720613","Thomas Telford Limited","00043768","1,869.25","Training Expenses","130217326","30/05/2018","Public Service Reform","Centralised Training","R1650"
"Wolverhampton City Council","http://opendatacommunities.org/id/metropolitan-district-council/wolverhampton","720615","Orchard Children Homes Ltd","P172716 27051820180504","15,200.00","TPP - Residential Care - Long Term","190454794","09/05/2018","Looked After Children","Out of City Placements","R5400"
"Wolverhampton City Council","http://opendatacommunities.org/id/metropolitan-district-council/wolverhampton","720637","Paula�s Flowers","02/18","458.33","Materials","130217204","23/05/2018","Bereavement Services","Crematorium","R4007"
"Wolverhampton City Council","http://opendatacommunities.org/id/metropolitan-district-council/wolverhampton","720639","Goldthorn Park Pri / Elston Hall MAT","Goldthorn Park Early Years Payment Spring Term Final 1718","18,754.83","Grant Payments","190458605","18/05/2018","Schools","Academy Early years","R4700"
"Wolverhampton City Council","http://opendatacommunities.org/id/metropolitan-district-council/wolverhampton","720639","Goldthorn Park Pri / Elston Hall MAT","Goldthorn Park Primary Capital Balance Transfer","3,522.61","Grant Payments","190454276","04/05/2018","Schools","Goldthorn Park Primary School","R4700"
"Wolverhampton City Council","http://opendatacommunities.org/id/metropolitan-district-council/wolverhampton","720639","Goldthorn Park Pri / Elston Hall MAT","Goldthorn Park Primary Revenue Balance Transfer","7,644.00","Grant Payments","190454275","04/05/2018","Schools","Goldthorn Park Primary School","R4700"
"Wolverhampton City Council","http://opendatacommunities.org/id/metropolitan-district-council/wolverhampton","720641","The Imaginarium","2017002","2,075.00","Services - Professional Fees","130214369","23/05/2018","Visitor Economy","Education And Access","R4400"
"Wolverhampton City Council","http://opendatacommunities.org/id/metropolitan-district-council/wolverhampton","720650","DATAport Media Limited","Grant No. 068/17c","9,548.00","Grants paid out to other organisations","190455104","09/05/2018","-","GF - Black Country Gold ERDF Project","C5011"
"Wolverhampton City Council","http://opendatacommunities.org/id/metropolitan-district-council/wolverhampton","720663","D A Languages Ltd","I0162279","193.08","Services - Translation fees","130212577","02/05/2018","Looked After Children","LAC Transitions Team","R4406"
"Wolverhampton City Council","http://opendatacommunities.org/id/metropolitan-district-council/wolverhampton","720663","D A Languages Ltd","I0162261","255.74","Services - Translation fees","130212573","02/05/2018","Child Protection","Childrens with Disabilities Team","R4406"
"Wolverhampton City Council","http://opendatacommunities.org/id/metropolitan-district-council/wolverhampton","720663","D A Languages Ltd","I0162255","108.40","Services - Translation fees","130212569","02/05/2018","Early Intervention","EIP Locality 3 - Graiseley","R4406"
"Wolverhampton City Council","http://opendatacommunities.org/id/metropolitan-district-council/wolverhampton","720663","D A Languages Ltd","I0162278","95.00","Services - Translation fees","130212576","02/05/2018","Public Protection","EHTS Operational Costs","R4406"
"Wolverhampton City Council","http://opendatacommunities.org/id/metropolitan-district-council/wolverhampton","720663","D A Languages Ltd","I0162297","69.00","Services - Translation fees","130212581","25/05/2018","Adults Assessment & Care Management North","Adult Services � North","R4406"
"Wolverhampton City Council","http://opendatacommunities.org/id/metropolitan-district-council/wolverhampton","720663","D A Languages Ltd","I0162502","727.00","Services - Translation fees","130212589","23/05/2018","Child Protection","CIN/CP Social Work Unit - Area 6","R4406"
"Wolverhampton City Council","http://opendatacommunities.org/id/metropolitan-district-council/wolverhampton","720663","D A Languages Ltd","I0164119","108.36","Services - Translation fees","130215655","30/05/2018","Early Intervention","EIP Locality 3 - Graiseley","R4406"
"Wolverhampton City Council","http://opendatacommunities.org/id/metropolitan-district-council/wolverhampton","720663","D A Languages Ltd","I0164133","23.00","Services - Translation fees","130215659","30/05/2018","Looked After Children","Adoption and Residence Team & Allowances","R4406"
"Wolverhampton City Council","http://opendatacommunities.org/id/metropolitan-district-council/wolverhampton","720663","D A Languages Ltd","I0164131","170.80","Services - Translation fees","130215658","30/05/2018","Early Intervention","EIP Locality 5 � Whitmore Reans","R4406"
"Wolverhampton City Council","http://opendatacommunities.org/id/metropolitan-district-council/wolverhampton","720663","D A Languages Ltd","I0163974","238.40","Services - Translation fees","130215649","30/05/2018","Child Protection","CIN/CP Social Work Unit - Area 6","R4406"
"Wolverhampton City Council","http://opendatacommunities.org/id/metropolitan-district-council/wolverhampton","720663","D A Languages Ltd","I0162497","15.00","Services - Translation fees","130212584","04/05/2018","Headstart","Headstart - Young People Engagement","R4406"
"Wolverhampton City Council","http://opendatacommunities.org/id/metropolitan-district-council/wolverhampton","720663","D A Languages Ltd","I0162522","46.00","Services - Translation fees","130212607","04/05/2018","Early Intervention","EIP Locality 1 - Eastfields","R4406"
"Wolverhampton City Council","http://opendatacommunities.org/id/metropolitan-district-council/wolverhampton","720663","D A Languages Ltd","I0162513","69.00","Services - Translation fees","130212598","04/05/2018","Youth Offending","Youth Offending Team","R4406"
"Wolverhampton City Council","http://opendatacommunities.org/id/metropolitan-district-council/wolverhampton","720663","D A Languages Ltd","I0162516","120.00","Services - Translation fees","130212601","04/05/2018","Early Intervention","EIP Locality 1 - Eastfields","R4406"
"Wolverhampton City Council","http://opendatacommunities.org/id/metropolitan-district-council/wolverhampton","720663","D A Languages Ltd","I0162519","23.00","Services - Translation fees","130212604","04/05/2018","Mental Health Assesment & Care Management","Mental Health Assessment & Care Management","R4406"
"Wolverhampton City Council","http://opendatacommunities.org/id/metropolitan-district-council/wolverhampton","720663","D A Languages Ltd","I0162529","20.80","Services - Translation fees","130213634","04/05/2018","Early Intervention","EIP Locality 2 � Bilston/Rocket Pool","R4406"
"Wolverhampton City Council","http://opendatacommunities.org/id/metropolitan-district-council/wolverhampton","720663","D A Languages Ltd","I0162518","161.00","Services - Translation fees","130212603","04/05/2018","Child Protection","CIN/CP Social Work Unit - Area 5","R4406"
"Wolverhampton City Council","http://opendatacommunities.org/id/metropolitan-district-council/wolverhampton","720663","D A Languages Ltd","I016091","23.00","Services - Translation fees","130216300","30/05/2018","Child Protection","CIN/CP Social Work Unit - Area 3","R4406"
"Wolverhampton City Council","http://opendatacommunities.org/id/metropolitan-district-council/wolverhampton","720663","D A Languages Ltd","I0164068","146.24","Services - Translation fees","130215652","30/05/2018","Child Protection","CIN/CP Social Work Unit - Area 5","R4406"
"Wolverhampton City Council","http://opendatacommunities.org/id/metropolitan-district-council/wolverhampton","720663","D A Languages Ltd","I0164130","69.00","Services - Translation fees","130215657","30/05/2018","Early Intervention","EIP Locality 8 � Children�s Village","R4406"
"Wolverhampton City Council","http://opendatacommunities.org/id/metropolitan-district-council/wolverhampton","720663","D A Languages Ltd","I0164093","262.84","Services - Translation fees","130215654","30/05/2018","Child Protection","CIN/CP Social Work Unit - Area 8","R4406"
"Wolverhampton City Council","http://opendatacommunities.org/id/metropolitan-district-council/wolverhampton","720663","D A Languages Ltd","I0162260","69.00","Services - Translation fees","130212572","23/05/2018","Carer Support","Carers Support","R4406"
"Wolverhampton City Council","http://opendatacommunities.org/id/metropolitan-district-council/wolverhampton","720663","D A Languages Ltd","I0162525","120.00","Services - Translation fees","130212610","04/05/2018","Customer Services","City Direct","R4406"
"Wolverhampton City Council","http://opendatacommunities.org/id/metropolitan-district-council/wolverhampton","720663","D A Languages Ltd","I0162503","35.36","Services - Translation fees","130213459","04/05/2018","Standards and Vulnerable Pupils","SENDIASS","R4406"
"Wolverhampton City Council","http://opendatacommunities.org/id/metropolitan-district-council/wolverhampton","720663","D A Languages Ltd","I0162512","402.00","Services - Translation fees","130212597","04/05/2018","Adults Assessment & Care Management East","Adult Services � East","R4406"
"Wolverhampton City Council","http://opendatacommunities.org/id/metropolitan-district-council/wolverhampton","720663","D A Languages Ltd","I0162531","32.24","Services - Translation fees","130213636","04/05/2018","Child Protection","CIN/CP Social Work Unit - Area 4","R4406"
"Wolverhampton City Council","http://opendatacommunities.org/id/metropolitan-district-council/wolverhampton","720663","D A Languages Ltd","I0162508","106.00","Services - Translation fees","130212593","04/05/2018","Child Protection","CIN/CP Social Work Unit - Area 6","R4406"
"Wolverhampton City Council","http://opendatacommunities.org/id/metropolitan-district-council/wolverhampton","720663","D A Languages Ltd","I0162523","46.00","Services - Translation fees","130212608","04/05/2018","Mental Health Assesment & Care Management","Mental Health Assessment & Care Management","R4406"
"Wolverhampton City Council","http://opendatacommunities.org/id/metropolitan-district-council/wolverhampton","720663","D A Languages Ltd","I0162504","23.00","Services - Translation fees","130212590","04/05/2018","Carer Support","Carers Support","R4406"
"Wolverhampton City Council","http://opendatacommunities.org/id/metropolitan-district-council/wolverhampton","720663","D A Languages Ltd","I0161220","27.16","Services - Translation fees","130210596","09/05/2018","Governance Services","Scrutiny","R4406"
"Wolverhampton City Council","http://opendatacommunities.org/id/metropolitan-district-council/wolverhampton","720663","D A Languages Ltd","I0162259","76.00","Services - Translation fees","130212571","02/05/2018","Child Protection","CIN/CP Social Work Unit - Area 2","R4406"
"Wolverhampton City Council","http://opendatacommunities.org/id/metropolitan-district-council/wolverhampton","720663","D A Languages Ltd","I0161213","268.68","Services - Translation fees","130210589","02/05/2018","Child Protection","CIN/CP Social Work Unit - Area 6","R4406"
"Wolverhampton City Council","http://opendatacommunities.org/id/metropolitan-district-council/wolverhampton","720663","D A Languages Ltd","I0162263","111.52","Services - Translation fees","130212574","02/05/2018","Child Protection","CIN/CP Social Work Unit - Area 5","R4406"
"Wolverhampton City Council","http://opendatacommunities.org/id/metropolitan-district-council/wolverhampton","720663","D A Languages Ltd","I0162270","780.83","Services - Translation fees","130212575","02/05/2018","Child Protection","Childrens with Disabilities Team","R4406"
"Wolverhampton City Council","http://opendatacommunities.org/id/metropolitan-district-council/wolverhampton","720663","D A Languages Ltd","I0164230","138.00","Services - Translation fees","130215895","30/05/2018","Early Intervention","EIP Locality 8 � Children�s Village","R4406"
"Wolverhampton City Council","http://opendatacommunities.org/id/metropolitan-district-council/wolverhampton","720663","D A Languages Ltd","I0164124","60.00","Services - Translation fees","130215656","30/05/2018","Specialist Support","Vulnerable Young Persons Team","R4406"
"Wolverhampton City Council","http://opendatacommunities.org/id/metropolitan-district-council/wolverhampton","720663","D A Languages Ltd","I0163982","23.00","Services - Translation fees","130215481","30/05/2018","Mental Health Assesment & Care Management","Mental Health Assessment & Care Management","R4406"
"Wolverhampton City Council","http://opendatacommunities.org/id/metropolitan-district-council/wolverhampton","720663","D A Languages Ltd","I0164064","7.28","Services - Translation fees","130215650","30/05/2018","Customer Services","City Direct","R4406"
"Wolverhampton City Council","http://opendatacommunities.org/id/metropolitan-district-council/wolverhampton","720663","D A Languages Ltd","I0162509","92.00","Services - Translation fees","130212594","04/05/2018","Carer Support","Carers Support","R4406"
"Wolverhampton City Council","http://opendatacommunities.org/id/metropolitan-district-council/wolverhampton","720663","D A Languages Ltd","I0162507","240.00","Services - Translation fees","130213460","04/05/2018","Customer Services","City Direct","R4406"
"Wolverhampton City Council","http://opendatacommunities.org/id/metropolitan-district-council/wolverhampton","720663","D A Languages Ltd","I0162517","400.00","Services - Translation fees","130212602","04/05/2018","Strategic Organisation Development","Service Development Team","R4406"
"Wolverhampton City Council","http://opendatacommunities.org/id/metropolitan-district-council/wolverhampton","720663","D A Languages Ltd","I0162498","592.69","Services - Translation fees","130212585","04/05/2018","Legal Services","Centralised External Legal Costs","R4406"
"Wolverhampton City Council","http://opendatacommunities.org/id/metropolitan-district-council/wolverhampton","720663","D A Languages Ltd","I0162526","46.00","Services - Translation fees","130212611","04/05/2018","Early Intervention","EIP Locality 6 � Dovecotes","R4406"
"Wolverhampton City Council","http://opendatacommunities.org/id/metropolitan-district-council/wolverhampton","720663","D A Languages Ltd","I0162520","46.00","Services - Translation fees","130212605","04/05/2018","Early Intervention","EIP Locality 2 � Bilston/Rocket Pool","R4406"
"Wolverhampton City Council","http://opendatacommunities.org/id/metropolitan-district-council/wolverhampton","720663","D A Languages Ltd","I0162505","23.00","Services - Translation fees","130212591","04/05/2018","Looked After Children","Looked After Team 1","R4406"
"Wolverhampton City Council","http://opendatacommunities.org/id/metropolitan-district-council/wolverhampton","720663","D A Languages Ltd","I0162286","260.98","Services - Translation fees","130212579","02/05/2018","Legal Services","Centralised External Legal Costs","R4406"
"Wolverhampton City Council","http://opendatacommunities.org/id/metropolitan-district-council/wolverhampton","720663","D A Languages Ltd","I0161230","120.00","Services - Translation fees","130210604","02/05/2018","Skills","Connexions Contract","R4406"
"Wolverhampton City Council","http://opendatacommunities.org/id/metropolitan-district-council/wolverhampton","720663","D A Languages Ltd","I0162309","488.68","Services - Translation fees","130212583","02/05/2018","Child Protection","CIN/CP Social Work Unit - Area 8","R4406"
"Wolverhampton City Council","http://opendatacommunities.org/id/metropolitan-district-council/wolverhampton","720663","D A Languages Ltd","I0162280","69.00","Services - Translation fees","130212578","02/05/2018","Early Intervention","EIP Locality 3 - Graiseley","R4406"
"Wolverhampton City Council","http://opendatacommunities.org/id/metropolitan-district-council/wolverhampton","720663","D A Languages Ltd","I0162506","184.00","Services - Translation fees","130212592","09/05/2018","Governance Services","Scrutiny","R4406"
"Wolverhampton City Council","http://opendatacommunities.org/id/metropolitan-district-council/wolverhampton","720663","D A Languages Ltd","I0162514","166.00","Services - Translation fees","130212599","30/05/2018","Specialist Support","Vulnerable Young Persons Team","R4406"
"Wolverhampton City Council","http://opendatacommunities.org/id/metropolitan-district-council/wolverhampton","720663","D A Languages Ltd","I0164038","905.62","Services - Translation fees","130215894","30/05/2018","Child Protection","Childrens with Disabilities Team","R4406"
"Wolverhampton City Council","http://opendatacommunities.org/id/metropolitan-district-council/wolverhampton","720663","D A Languages Ltd","I0165135","46.00","Services - Translation fees","130216302","30/05/2018","Child Protection","CIN/CP Social Work Unit - Area 2","R4406"
"Wolverhampton City Council","http://opendatacommunities.org/id/metropolitan-district-council/wolverhampton","720663","D A Languages Ltd","I0164138","30.00","Services - Translation fees","130215660","30/05/2018","Specialist Support","Vulnerable Young Persons Team","R4406"
"Wolverhampton City Council","http://opendatacommunities.org/id/metropolitan-district-council/wolverhampton","720663","D A Languages Ltd","I0163738","62.08","Services - Translation fees","130215768","30/05/2018","Legal Services","Centralised External Legal Costs","R4406"
"Wolverhampton City Council","http://opendatacommunities.org/id/metropolitan-district-council/wolverhampton","720663","D A Languages Ltd","I0162521","46.00","Services - Translation fees","130212606","04/05/2018","Adults Assessment & Care Management West","Adult Services � West","R4406"
"Wolverhampton City Council","http://opendatacommunities.org/id/metropolitan-district-council/wolverhampton","720663","D A Languages Ltd","I0162499","69.00","Services - Translation fees","130212586","04/05/2018","Child Protection","CIN/CP Social Work Unit - Area 3","R4406"
"Wolverhampton City Council","http://opendatacommunities.org/id/metropolitan-district-council/wolverhampton","720663","D A Languages Ltd","I0162511","281.00","Services - Translation fees","130212596","04/05/2018","Child Protection","CIN/CP Social Work Unit - Area 4","R4406"
"Wolverhampton City Council","http://opendatacommunities.org/id/metropolitan-district-council/wolverhampton","720663","D A Languages Ltd","I0162510","23.00","Services - Translation fees","130212595","04/05/2018","Child Protection","Childrens with Disabilities Team","R4406"
"Wolverhampton City Council","http://opendatacommunities.org/id/metropolitan-district-council/wolverhampton","720663","D A Languages Ltd","I0162500","184.00","Services - Translation fees","130212587","04/05/2018","Looked After Children","Fostering Team & Allowances","R4406"
"Wolverhampton City Council","http://opendatacommunities.org/id/metropolitan-district-council/wolverhampton","720663","D A Languages Ltd","I0162501","20.40","Services - Translation fees","130212588","04/05/2018","Legal Services","Centralised External Legal Costs","R4406"
"Wolverhampton City Council","http://opendatacommunities.org/id/metropolitan-district-council/wolverhampton","720663","D A Languages Ltd","I0162524","92.00","Services - Translation fees","130212609","04/05/2018","Looked After Children","Adoption and Residence Team & Allowances","R4406"
"Wolverhampton City Council","http://opendatacommunities.org/id/metropolitan-district-council/wolverhampton","720663","D A Languages Ltd","I0162257","113.60","Services - Translation fees","130212570","02/05/2018","Early Intervention","EIP Locality 5 � Whitmore Reans","R4406"
"Wolverhampton City Council","http://opendatacommunities.org/id/metropolitan-district-council/wolverhampton","720663","D A Languages Ltd","I0162012","364.28","Services - Translation fees","130212566","02/05/2018","Safeguarding","Head of Service Quality and Safeguarding","R4406"
"Wolverhampton City Council","http://opendatacommunities.org/id/metropolitan-district-council/wolverhampton","720663","D A Languages Ltd","I0162002","2,067.07","Services - Translation fees","130212565","02/05/2018","Child Protection","CIN/CP Social Work Unit - Area 3","R4406"
"Wolverhampton City Council","http://opendatacommunities.org/id/metropolitan-district-council/wolverhampton","720663","D A Languages Ltd","I0162254","300.00","Services - Translation fees","130212568","02/05/2018","Early Intervention","EIP Locality 8 � Children�s Village","R4406"
"Wolverhampton City Council","http://opendatacommunities.org/id/metropolitan-district-council/wolverhampton","720676","Berith & Camphill/Birch","78920180514","1,680.00","TPP - Supported Living","190457662","16/05/2018","Mental Health Assesment & Care Management","MH Care Purchasing (Spot Placements)","R5422"
"Wolverhampton City Council","http://opendatacommunities.org/id/metropolitan-district-council/wolverhampton","720689","Avanti Gas Limited","0310/ 00746250","311.25","Gas","130213272","09/05/2018","Markets","Wholesale Market Facilities Management","R2101"
"Wolverhampton City Council","http://opendatacommunities.org/id/metropolitan-district-council/wolverhampton","720714","Cannock Road Medical Practice","MD/LWAT14","20.00","Services - Professional Fees","190459317","18/05/2018","Legal Services","Centralised External Legal Costs","R4400"
"Wolverhampton City Council","http://opendatacommunities.org/id/metropolitan-district-council/wolverhampton","720714","Cannock Road Medical Practice","MD/LWATTS518","20.00","Services - Professional Fees","190459319","18/05/2018","Legal Services","Centralised External Legal Costs","R4400"
"Wolverhampton City Council","http://opendatacommunities.org/id/metropolitan-district-council/wolverhampton","720714","Cannock Road Medical Practice","MD/GWAT15","20.00","Services - Professional Fees","190459318","18/05/2018","Legal Services","Centralised External Legal Costs","R4400"
"Wolverhampton City Council","http://opendatacommunities.org/id/metropolitan-district-council/wolverhampton","720714","Cannock Road Medical Practice","MD/DWAT13","20.00","Services - Professional Fees","190459320","18/05/2018","Legal Services","Centralised External Legal Costs","R4400"
"Wolverhampton City Council","http://opendatacommunities.org/id/metropolitan-district-council/wolverhampton","720716","Link Asset Services Ltd","6002005301","16,000.00","Services - Professional Fees","130202369","25/05/2018","Corporate Accounts","Treasury Management","R4400"
"Wolverhampton City Council","http://opendatacommunities.org/id/metropolitan-district-council/wolverhampton","720737","KareerHub Ltd","KHL 18-01","2,100.00","Computing - Licences","130212421","04/05/2018","Skills","Work Box","R4535"
"Wolverhampton City Council","http://opendatacommunities.org/id/metropolitan-district-council/wolverhampton","720745","Soundabout","2917","3,840.00","Services - Professional Fees","130212432","09/05/2018","School Planning & Resources","Music Support Team","R4400"
"Wolverhampton City Council","http://opendatacommunities.org/id/metropolitan-district-council/wolverhampton","720774","Norman Bookkeeping and Payroll Ltd","Grant No. 075/17r","4,800.00","Grant Payments","190453050","02/05/2018","Enterprise","Black Country Gold","R4700"
"Wolverhampton City Council","http://opendatacommunities.org/id/metropolitan-district-council/wolverhampton","720784","GD Systems (UK) Ltd","18/6222","7,953.20","Equipment - Purchase","130214211","18/05/2018","Adult Education","Central Costs","R4000"
"Wolverhampton City Council","http://opendatacommunities.org/id/metropolitan-district-council/wolverhampton","720793","De Vere Staverton Estate","4760/DSP","495.00","Room Hire","130213274","09/05/2018","Public Service Reform","Centralised Training","R2201"
"Wolverhampton City Council","http://opendatacommunities.org/id/metropolitan-district-council/wolverhampton","720804","St Francis� Children�s Society","996376","2,250.00","TPP - Payments to voluntary groups","130214072","11/05/2018","Looked After Children","Adoption and Residence Team & Allowances","R5200"
"Wolverhampton City Council","http://opendatacommunities.org/id/metropolitan-district-council/wolverhampton","720840","Wyevale Nurseries","341815","5,230.00","Materials","130208105","02/05/2018","Environmental Maintenance","Arbor Scheme","R4007"
"Wolverhampton City Council","http://opendatacommunities.org/id/metropolitan-district-council/wolverhampton","720857","Advent Catering Equip Ltd","00004010 bacs rej.","300.00","R&M - Departmental response (external)","130214909","02/05/2018","Schools","Merridale Primary School","R2003"
"Wolverhampton City Council","http://opendatacommunities.org/id/metropolitan-district-council/wolverhampton","720870","Hands Free Computing Ltd","50557","695.00","Equipment - Purchase","130212339","11/05/2018","Inclusion Support","Inclusion Support","R4000"
"Wolverhampton City Council","http://opendatacommunities.org/id/metropolitan-district-council/wolverhampton","720885","Action Digital Media Limited","82672","54.80","Services - Professional Fees","130213639","09/05/2018","Visitor Economy","Venice Diaspora - ACE NPO WAG","R4400"
"Wolverhampton City Council","http://opendatacommunities.org/id/metropolitan-district-council/wolverhampton","720887","York Archaeological Trust","0000005206","6,000.00","Services - Professional Fees","130216079","16/05/2018","Visitor Economy","Contemporary Gallery - NPO ACE WAG","R4400"
"Wolverhampton City Council","http://opendatacommunities.org/id/metropolitan-district-council/wolverhampton","720896","Wakefield Council","91311443611","10,000.00","Subscriptions","130217205","25/05/2018","Public Service Reform","Members Expenses","R4701"
"Wolverhampton City Council","http://opendatacommunities.org/id/metropolitan-district-council/wolverhampton","720899","B Smart Training Ltd","1607","3,100.00","Training Expenses","130214212","09/05/2018","Skills","IMPACT","R1650"
"Wolverhampton City Council","http://opendatacommunities.org/id/metropolitan-district-council/wolverhampton","720899","B Smart Training Ltd","1608","590.00","Training Expenses","130214213","09/05/2018","Skills","IMPACT","R1650"
"Wolverhampton City Council","http://opendatacommunities.org/id/metropolitan-district-council/wolverhampton","720899","B Smart Training Ltd","1622","775.00","Training Expenses","130216303","18/05/2018","Skills","IMPACT","R1650"
"Wolverhampton City Council","http://opendatacommunities.org/id/metropolitan-district-council/wolverhampton","720899","B Smart Training Ltd","1623","5,425.00","Training Expenses","130216304","30/05/2018","Skills","IMPACT","R1650"
"Wolverhampton City Council","http://opendatacommunities.org/id/metropolitan-district-council/wolverhampton","720899","B Smart Training Ltd","1613","3,875.00","Training Expenses","130215900","11/05/2018","Skills","IMPACT","R1650"
"Wolverhampton City Council","http://opendatacommunities.org/id/metropolitan-district-council/wolverhampton","720904","NTA Monitor Ltd","18100","7,257.28","Intangible Assets / Computer Software","130213275","02/05/2018","-","ICT General Programme","C4005"
"Wolverhampton City Council","http://opendatacommunities.org/id/metropolitan-district-council/wolverhampton","720916","Rus Smith","034","300.00","Services - Professional Fees","130214073","16/05/2018","Headstart","Headstart - Young People Engagement","R4400"
"Wolverhampton City Council","http://opendatacommunities.org/id/metropolitan-district-council/wolverhampton","720934","Thomson Ecology Ltd","INV011461","2,469.00","Services - Professional Fees","130217206","25/05/2018","Corporate Asset Management","Statutory Surveys","R4400"
"Wolverhampton City Council","http://opendatacommunities.org/id/metropolitan-district-council/wolverhampton","720939","Creative-Connections","#16000007","435.00","Direct Work With Children","130214373","02/05/2018","Looked After Children","Adoption Support Fund","R6310"
"Wolverhampton City Council","http://opendatacommunities.org/id/metropolitan-district-council/wolverhampton","720939","Creative-Connections","#16000005","500.00","Direct Work With Children","130214371","09/05/2018","Looked After Children","Adoption Support Fund","R6310"
"Wolverhampton City Council","http://opendatacommunities.org/id/metropolitan-district-council/wolverhampton","720939","Creative-Connections","#16000006","637.00","Direct Work With Children","130214372","02/05/2018","Looked After Children","Adoption Support Fund","R6310"
"Wolverhampton City Council","http://opendatacommunities.org/id/metropolitan-district-council/wolverhampton","720939","Creative-Connections","#16000004","525.00","Direct Work With Children","130214370","02/05/2018","Looked After Children","Adoption Support Fund","R6310"
"Wolverhampton City Council","http://opendatacommunities.org/id/metropolitan-district-council/wolverhampton","720974","Taz Lovejoy","0003","315.00","Services - Professional Fees","130213468","11/05/2018","Visitor Economy","Technical Support - ACE NPO WAG","R4400"
"Wolverhampton City Council","http://opendatacommunities.org/id/metropolitan-district-council/wolverhampton","720979","The Lee Shaw Partnership","H102/715","250.00","External Professional Fees","130215902","30/05/2018","-","Heath Town","C6002"
"Wolverhampton City Council","http://opendatacommunities.org/id/metropolitan-district-council/wolverhampton","721017","Mrs M Dell","MDS/002/2018","470.00","No Recourse to Public Funds","130216629","30/05/2018","Child Protection","CIN/CP Social Work Unit - Area 7","R6314"
"Wolverhampton City Council","http://opendatacommunities.org/id/metropolitan-district-council/wolverhampton","721017","Mrs M Dell","MDS/001/2018","1,410.00","No Recourse to Public Funds","130215903","11/05/2018","Child Protection","CIN/CP Social Work Unit - Area 7","R6314"
"Wolverhampton City Council","http://opendatacommunities.org/id/metropolitan-district-council/wolverhampton","721028","Mr Major Singh","2","1,100.00","No Recourse to Public Funds","130215169","04/05/2018","Child Protection","CIN/CP Social Work Unit - Area 5","R6314"
"Wolverhampton City Council","http://opendatacommunities.org/id/metropolitan-district-council/wolverhampton","721028","Mr Major Singh","3","1,650.00","No Recourse to Public Funds","130215170","04/05/2018","Child Protection","CIN/CP Social Work Unit - Area 5","R6314"
"Wolverhampton City Council","http://opendatacommunities.org/id/metropolitan-district-council/wolverhampton","721028","Mr Major Singh","16082809","1,100.00","No Recourse to Public Funds","130212617","02/05/2018","Child Protection","CIN/CP Social Work Unit - Area 5","R6314"
"Wolverhampton City Council","http://opendatacommunities.org/id/metropolitan-district-council/wolverhampton","721028","Mr Major Singh","16082811","1,650.00","No Recourse to Public Funds","130212618","02/05/2018","Child Protection","CIN/CP Social Work Unit - Area 5","R6314"
"Wolverhampton City Council","http://opendatacommunities.org/id/metropolitan-district-council/wolverhampton","721041","BOUYGUES DEVELOPMENT - THOMAS VALE LTD","1726000018","148,700.43","Construction and Conversion","190455096","09/05/2018","-","Tap Works site","C1100"
"Wolverhampton City Council","http://opendatacommunities.org/id/metropolitan-district-council/wolverhampton","721062","MCSA","S-INV+108622","4,000.00","Services - Professional Fees","130212169","04/05/2018","ICTS","Strategic ICTS (ICT Service Budget)","R4400"
"Wolverhampton City Council","http://opendatacommunities.org/id/metropolitan-district-council/wolverhampton","721066","Paragon Engineering and Logistics Ltd","Grant No. 095/18c","16,170.00","Grants paid out to other organisations","190463612","30/05/2018","-","GF - Black Country Gold ERDF Project","C5011"
"Wolverhampton City Council","http://opendatacommunities.org/id/metropolitan-district-council/wolverhampton","721080","Prospectus Limited","RA00032199","600.00","Agency Staff","130211097","30/05/2018","Looked After Children","RAA - Regional Adoption Agency","R1100"
"Wolverhampton City Council","http://opendatacommunities.org/id/metropolitan-district-council/wolverhampton","721087","Transervice Training Ltd","457","915.00","Training Expenses","130214906","04/05/2018","Skills","IMPACT","R1650"
"Wolverhampton City Council","http://opendatacommunities.org/id/metropolitan-district-council/wolverhampton","721087","Transervice Training Ltd","458","260.00","Training Expenses","130214907","04/05/2018","Skills","IMPACT","R1650"
"Wolverhampton City Council","http://opendatacommunities.org/id/metropolitan-district-council/wolverhampton","721087","Transervice Training Ltd","456","580.14","Training Expenses","130214905","04/05/2018","Skills","IMPACT","R1650"
"Wolverhampton City Council","http://opendatacommunities.org/id/metropolitan-district-council/wolverhampton","721111","Dawkes Music and Windcraft Ltd","INV9020502","65.63","Equipment - R & M","130215471","16/05/2018","School Planning & Resources","Music Support Team","R4003"
"Wolverhampton City Council","http://opendatacommunities.org/id/metropolitan-district-council/wolverhampton","721113","Hotline Cars Ltd","02303","238.00","Client Transport - SEN","130214374","04/05/2018","Special Educational Needs","Special - Transport","R3043"
"Wolverhampton City Council","http://opendatacommunities.org/id/metropolitan-district-council/wolverhampton","721116","Sanders Wright and Freeman","MJH/R791","425.00","No Recourse to Public Funds","130212171","02/05/2018","Child Protection","CIN/CP Social Work Unit - Area 5","R6314"
"Wolverhampton City Council","http://opendatacommunities.org/id/metropolitan-district-council/wolverhampton","721117","Medicotech Ltd","4095","4,995.00","Equipment - Purchase","130215904","30/05/2018","Independent Living Service","Independent Living Service","R4000"
"Wolverhampton City Council","http://opendatacommunities.org/id/metropolitan-district-council/wolverhampton","721117","Medicotech Ltd","4095","2,995.00","Equipment - Purchase","130215904","30/05/2018","Independent Living Service","Independent Living Service","R4000"
"Wolverhampton City Council","http://opendatacommunities.org/id/metropolitan-district-council/wolverhampton","721146","Future First Independent School","SENT3.053","6,866.80","TPP - Independent Schools","130216150","25/05/2018","Special Educational Needs","SEN Education OOC","R5036"
"Wolverhampton City Council","http://opendatacommunities.org/id/metropolitan-district-council/wolverhampton","721169","Lunar Festival","20/03/2018 blue form","4,950.00","Events","130217567","30/05/2018","Visitor Economy","Midland Box Office","R9216"
"Wolverhampton City Council","http://opendatacommunities.org/id/metropolitan-district-council/wolverhampton","721172","Ultima Business Solutions","OP/I144625","45.00","Computing - Purchase of Hardware","130213915","16/05/2018","Adult Education","ICT Services","R4530"
"Wolverhampton City Council","http://opendatacommunities.org/id/metropolitan-district-council/wolverhampton","721172","Ultima Business Solutions","OP/I144625","82.00","Computing - Purchase of Hardware","130213915","16/05/2018","Adult Education","ICT Services","R4530"
"Wolverhampton City Council","http://opendatacommunities.org/id/metropolitan-district-council/wolverhampton","721172","Ultima Business Solutions","OP/I144625","44.00","Computing - Purchase of Hardware","130213915","16/05/2018","Adult Education","ICT Services","R4530"
"Wolverhampton City Council","http://opendatacommunities.org/id/metropolitan-district-council/wolverhampton","721172","Ultima Business Solutions","OP/I144625","16.40","Computing - Purchase of Hardware","130213915","16/05/2018","Adult Education","ICT Services","R4530"
"Wolverhampton City Council","http://opendatacommunities.org/id/metropolitan-district-council/wolverhampton","721172","Ultima Business Solutions","OP/I144625","15.00","Comms - Postage","130213915","16/05/2018","Adult Education","ICT Services","R4503"
"Wolverhampton City Council","http://opendatacommunities.org/id/metropolitan-district-council/wolverhampton","721172","Ultima Business Solutions","OP/I144731","9,185.70","Computing - Purchase of Hardware","130214215","18/05/2018","Adult Education","ICT Services","R4530"
"Wolverhampton City Council","http://opendatacommunities.org/id/metropolitan-district-council/wolverhampton","721179","Klick Business Solutions Limited","Grant No. 089/18c","2,794.00","Grants paid out to other organisations","190463613","30/05/2018","-","GF - Black Country Gold ERDF Project","C5011"
"Wolverhampton City Council","http://opendatacommunities.org/id/metropolitan-district-council/wolverhampton","721198","Gleeds Cost Management Limited","BMCM0429/001","2,500.00","Services - Professional Fees","130215173","30/05/2018","Land and Property Investment Support","Land Property Investment Fund Management Costs","R4400"
"Wolverhampton City Council","http://opendatacommunities.org/id/metropolitan-district-council/wolverhampton","721198","Gleeds Cost Management Limited","BMCM0425/001","2,500.00","Services - Professional Fees","130215171","16/05/2018","Land and Property Investment Support","Land Property Investment Fund Management Costs","R4400"
"Wolverhampton City Council","http://opendatacommunities.org/id/metropolitan-district-council/wolverhampton","721198","Gleeds Cost Management Limited","BMCM0427/001","2,500.00","Services - Professional Fees","130215172","30/05/2018","Land and Property Investment Support","Land Property Investment Fund Management Costs","R4400"
"Wolverhampton City Council","http://opendatacommunities.org/id/metropolitan-district-council/wolverhampton","721200","43 Temple Row Chambers","1533619/03/18","2,955.00","Services - Professional Fees","130215174","04/05/2018","Legal Services","Centralised External Legal Costs","R4400"
"Wolverhampton City Council","http://opendatacommunities.org/id/metropolitan-district-council/wolverhampton","721200","43 Temple Row Chambers","1533617/04/18","3,405.00","Services - Professional Fees","130214558","16/05/2018","Legal Services","Centralised External Legal Costs","R4400"
"Wolverhampton City Council","http://opendatacommunities.org/id/metropolitan-district-council/wolverhampton","721200","43 Temple Row Chambers","15336","3,405.00","Services - Professional Fees","130217208","30/05/2018","Legal Services","Centralised External Legal Costs","R4400"
"Wolverhampton City Council","http://opendatacommunities.org/id/metropolitan-district-council/wolverhampton","721204","David Ogilvie Engineering Ltd.","181275","8,411.00","Furniture","130216306","16/05/2018","Transportation","Transportation General","R4004"
"Wolverhampton City Council","http://opendatacommunities.org/id/metropolitan-district-council/wolverhampton","721204","David Ogilvie Engineering Ltd.","181275","637.00","Furniture","130216306","16/05/2018","Transportation","Transportation General","R4004"
"Wolverhampton City Council","http://opendatacommunities.org/id/metropolitan-district-council/wolverhampton","721204","David Ogilvie Engineering Ltd.","181275","123.50","Furniture","130216306","16/05/2018","Transportation","Transportation General","R4004"
"Wolverhampton City Council","http://opendatacommunities.org/id/metropolitan-district-council/wolverhampton","721204","David Ogilvie Engineering Ltd.","181275","52.00","Furniture","130216306","16/05/2018","Transportation","Transportation General","R4004"
"Wolverhampton City Council","http://opendatacommunities.org/id/metropolitan-district-council/wolverhampton","721204","David Ogilvie Engineering Ltd.","181275","595.00","Comms - Postage","130216306","16/05/2018","Transportation","Transportation General","R4503"
"Wolverhampton City Council","http://opendatacommunities.org/id/metropolitan-district-council/wolverhampton","721207","UKS Mobility.Com Ltd","100023668","105.95","Equipment - Purchase","130212892","09/05/2018","Independent Living Service","Independent Living Service","R4000"
"Wolverhampton City Council","http://opendatacommunities.org/id/metropolitan-district-council/wolverhampton","721209","Domestic Goddess Services","21900","425.00","Contract Cleaning","130214075","04/05/2018","Mental Health Assesment & Care Management","Mental Health Assessment & Care Management","R2700"
"Wolverhampton City Council","http://opendatacommunities.org/id/metropolitan-district-council/wolverhampton","721217","Precision Design Serv Ltd - PDS Hygiene","8346","530.00","Adaptations","130212715","04/05/2018","Independent Living Service","Independent Living Service","R4411"
"Wolverhampton City Council","http://opendatacommunities.org/id/metropolitan-district-council/wolverhampton","721228","REDE Graffiti","4","610.00","Services - Professional Fees","130215175","09/05/2018","Strategic Organisation Development","GEN Y City Transnational","R4400"
"Wolverhampton City Council","http://opendatacommunities.org/id/metropolitan-district-council/wolverhampton","721229","Frontier Therapeutics Limited","445452","84.00","Equipment - Purchase","130213644","04/05/2018","Independent Living Service","Independent Living Service","R4000"
"Wolverhampton City Council","http://opendatacommunities.org/id/metropolitan-district-council/wolverhampton","721235","Get Well Stay Well","CS/00081","40.00","Services - Professional Fees","130214960","23/05/2018","Carer Support","Carers Support","R4400"
"Wolverhampton City Council","http://opendatacommunities.org/id/metropolitan-district-council/wolverhampton","721239","Steven Talbot Consultancy","1019","1,700.00","Training Expenses","130213649","09/05/2018","Public Service Reform","Workforce Development","R1650"
"Wolverhampton City Council","http://opendatacommunities.org/id/metropolitan-district-council/wolverhampton","721239","Steven Talbot Consultancy","1019","70.00","Training Expenses","130213649","09/05/2018","Public Service Reform","Workforce Development","R1650"
"Wolverhampton City Council","http://opendatacommunities.org/id/metropolitan-district-council/wolverhampton","721239","Steven Talbot Consultancy","1020","1,000.00","Training Expenses","130215472","23/05/2018","Public Service Reform","Workforce Development","R1650"
"Wolverhampton City Council","http://opendatacommunities.org/id/metropolitan-district-council/wolverhampton","721239","Steven Talbot Consultancy","1020","70.00","Training Expenses","130215472","23/05/2018","Public Service Reform","Workforce Development","R1650"
"Wolverhampton City Council","http://opendatacommunities.org/id/metropolitan-district-council/wolverhampton","721245","Event-X M�ment & Venue Finding Services","EX002056","390.00","Accommodation Costs","130215663","30/05/2018","Strategic Director Place","Strategic Director Place","R4900"
"Wolverhampton City Council","http://opendatacommunities.org/id/metropolitan-district-council/wolverhampton","721245","Event-X M�ment & Venue Finding Services","EX002056","390.00","Accommodation Costs","130215663","30/05/2018","Strategic Director People","Strategic Director People","R4900"
"Wolverhampton City Council","http://opendatacommunities.org/id/metropolitan-district-council/wolverhampton","721255","PA HOUSING","1001253","1,174.69","Section 17","130215332","25/05/2018","Child Protection","CIN/CP Social Work Unit - Area 4","R6403"
"Wolverhampton City Council","http://opendatacommunities.org/id/metropolitan-district-council/wolverhampton","721260","SOCOTEC UK Ltd","0000688256","316.80","Services - Professional Fees","130213796","16/05/2018","Public Protection","Air Quality and Noise","R4400"
"Wolverhampton City Council","http://opendatacommunities.org/id/metropolitan-district-council/wolverhampton","721266","H Elia-Papadopoulous (Helene Elia)","021","800.00","Training Expenses","130214217","16/05/2018","Public Service Reform","Workforce Development","R1650"
"Wolverhampton City Council","http://opendatacommunities.org/id/metropolitan-district-council/wolverhampton","721266","H Elia-Papadopoulous (Helene Elia)","021","23.00","Training Expenses","130214217","16/05/2018","Public Service Reform","Workforce Development","R1650"
"Wolverhampton City Council","http://opendatacommunities.org/id/metropolitan-district-council/wolverhampton","721285","Caring for Care Limited","INV-111702","600.00","Training Expenses","130216082","16/05/2018","Public Service Reform","Workforce Development","R1650"
"Wolverhampton City Council","http://opendatacommunities.org/id/metropolitan-district-council/wolverhampton","721288","Highfield Awarding Body for Comp. Ltd","0005991074","450.00","Training Expenses","130214951","23/05/2018","Catering","School Meals Statutory standards","R1650"
"Wolverhampton City Council","http://opendatacommunities.org/id/metropolitan-district-council/wolverhampton","721288","Highfield Awarding Body for Comp. Ltd","0005991074","20.00","Training Expenses","130214951","23/05/2018","Catering","School Meals Statutory standards","R1650"
"Wolverhampton City Council","http://opendatacommunities.org/id/metropolitan-district-council/wolverhampton","721288","Highfield Awarding Body for Comp. Ltd","0005991074","500.00","Training Expenses","130214951","23/05/2018","Catering","School Meals Statutory standards","R1650"
"Wolverhampton City Council","http://opendatacommunities.org/id/metropolitan-district-council/wolverhampton","721292","RTC Medical Solutions Ltd","SI-1135","850.00","Services - Professional Fees","130215176","25/05/2018","Visitor Economy","Vaisakhi","R4400"
"Wolverhampton City Council","http://opendatacommunities.org/id/metropolitan-district-council/wolverhampton","721292","RTC Medical Solutions Ltd","SI-1137","3,300.00","Services - Professional Fees","130215333","30/05/2018","Public Service Reform","Civic Events","R4400"
"Wolverhampton City Council","http://opendatacommunities.org/id/metropolitan-district-council/wolverhampton","721306","Lymebrook Surgery","LB-252 KH 26/10/78","62.50","Medical Fees","190454255","04/05/2018","Bereavement Services","Cemeteries","R1400"
"Wolverhampton City Council","http://opendatacommunities.org/id/metropolitan-district-council/wolverhampton","721308","Howard Swift","30/04/2018 blue form","167.00","Subsistence","130214685","02/05/2018","Service Director City Economy","Service Director City Economy","R4610"
"Wolverhampton City Council","http://opendatacommunities.org/id/metropolitan-district-council/wolverhampton","721409","It�s Your Life","25052018","12,000.00","Financial Assistance In Exceptional Circumstances","190462975","25/05/2018","Adults Assessment & Care Management East","Adult Services � East","R6311"
